Workbook

Sheet Intro
B2: Pro správnou funkčnost šablony je zapotřebí povolit makra.
B3: A jelikož nemáte makra povolená, zobrazuje se tento list.
B4: Makra povolíte v menu Soubor/Možnosti/Centrum zabezpečení/Nastavení centra zabezpečení/ Nastavení maker a zaškrtněte volbu Povolit všechny makra
B5: Po povolení maker šablonu zavřete a otevřete znovu.

Sheet Summary (hidden)
G1: =SUM(F:F) -> 0
B2: Plánovací proces 2021 - šablona pro úpravu návrhu rozpočtu analytického účtu do středisek a měsíců
B4: Garant | C4: OIN
B5: Jméno | C5: Ing. František Valíček
B6: Email | C6: Frantisek.Valicek@fnol.cz
B8: Analytický účet | D8: Rozpočet
D9: 1_Původní | E9: 2_Upravený | F9: 3_Rozdíly
B10: 51805001 | C10: Průzkumné a projektové práce | D10: =IFERROR(VLOOKUP(B10,'1_Původní'!A:P,16,FALSE),0) -> 500000 | E10: =IFERROR(VLOOKUP(B10,'2_Upravený'!A:P,16,FALSE),0) -> 500000 | F10: =ROUND(E10-D10,0) -> 0
B11: 51874001 | C11: Ostatní služby - provozní | D11: =IFERROR(VLOOKUP(B11,'1_Původní'!A:P,16,FALSE),0) -> 11051000 | E11: =IFERROR(VLOOKUP(B11,'2_Upravený'!A:P,16,FALSE),0) -> 11051000 | F11: =ROUND(E11-D11,0) -> 0
F13: =ROUND(SUM(F10:F11),0) -> 0
B15: Přehled plánovaných rezerv za garanta
F16: =IF(COUNTIF('2_Upravený'!$Q:$Q,"Obrat bez specifikace NS")>0,COUNTIF('2_Upravený'!$Q:$Q,"Obrat bez specifikace NS"),"") -> 
B17: Bez rezerv | E17: =IF($F$16="","","Obrat") ->  | F17: =IF(COUNTIF('2_Upravený'!$Q:$Q,"Obrat bez specifikace NS")>0,SUMIF('2_Upravený'!$Q:$Q,"Obrat bez specifikace NS",'2_Upravený'!$P:$P),"") -> 

Sheet 1_Původní (hidden)
A1: Legenda | C1: Hodnoty v CZK
A2: Účet | B2: Název účtu
B3: NS | C3: Název NS | D3: 202001 | E3: 202002 | F3: 202003 | G3: 202004 | H3: 202005 | I3: 202006 | J3: 202007 | K3: 202008 | L3: 202009 | M3: 202010 | N3: 202011 | O3: 202012 | P3: 2020 celkem
A5: 51805001 | B5: Průzkumné a projektové práce | D5: =SUM(D6:D32) -> 47133.2596 | E5: 9722.7374 | F5: 7750.4106 | G5: 30075.0554 | H5: 34207.965 | I5: 71881.6783 | J5: 34896.7066 | K5: 76484.3096 | L5: 13167.3643 | M5: 47093.6338 | N5: 68552.9894 | O5: 59033.89 | P5: 500000
B6: 0111 | C6: Lůžkové oddělení 1 | D6: 6767.0252 | E6: 0 | F6: 0 | G6: 0 | H6: 0 | I6: 0 | J6: 0 | K6: 0 | L6: 0 | M6: 0 | N6: 0 | O6: 0 | P6: =SUM(D6:O6) -> 6767.0252
B7: 0301 | C7: Vedení klinického pracoviště | D7: 0 | E7: 0 | F7: 0 | G7: 0 | H7: 0 | I7: 277.7925 | J7: 0 | K7: 0 | L7: 0 | M7: 0 | N7: 0 | O7: 0 | P7: =SUM(D7:O7) -> 277.7925
B8: 0811 | C8: Lůžkové oddělení 19B (šestinedělí) | D8: 0 | E8: 0 | F8: 0 | G8: 23417.2187 | H8: 0 | I8: 0 | J8: 0 | K8: 0 | L8: 0 | M8: 0 | N8: 0 | O8: 0 | P8: 23417.2187
B9: 0832 | C9: JIP 19 (porodní sál) | D9: 6250.3312 | E9: 0 | F9: 0 | G9: 0 | H9: 0 | I9: 0 | J9: 0 | K9: 0 | L9: 0 | M9: 0 | N9: 0 | O9: 0 | P9: 6250.3312
B10: 0862 | C10: Porodní sál - lokální | D10: 0 | E10: 0 | F10: 0 | G10: 0 | H10: 0 | I10: 0 | J10: 0 | K10: 0 | L10: 0 | M10: 0 | N10: 0 | O10: 11938.1899 | P10: 11938.1899
B11: 0863 | C11: Operační sál OP 17 (z 08 62) | D11: 2222.34 | E11: 0 | F11: 0 | G11: 0 | H11: 0 | I11: 0 | J11: 0 | K11: 0 | L11: 0 | M11: 0 | N11: 0 | O11: 0 | P11: 2222.34
B12: 0931 | C12: JIP 16A +16D | D12: 0 | E12: 0 | F12: 0 | G12: 0 | H12: 10444.9979 | I12: 0 | J12: 0 | K12: 0 | L12: 0 | M12: 0 | N12: 0 | O12: 0 | P12: 10444.9979
B13: 1001 | C13: Vedení klinického pracoviště | D13: 0 | E13: 0 | F13: 0 | G13: 0 | H13: 0 | I13: 277.7925 | J13: 0 | K13: 0 | L13: 0 | M13: 0 | N13: 0 | O13: 0 | P13: 277.7925
B14: 1012 | C14: Lůžkové oddělení 28C vč.dospávací haly | D14: 0 | E14: 0 | F14: 0 | G14: 0 | H14: 7778.1899 | I14: 0 | J14: 0 | K14: 0 | L14: 0 | M14: 0 | N14: 0 | O14: 0 | P14: 7778.1899
B15: 1121 | C15: Ambulance | D15: 0 | E15: 0 | F15: 0 | G15: 0 | H15: 0 | I15: 0 | J15: 0 | K15: 10833.9074 | L15: 0 | M15: 0 | N15: 0 | O15: 0 | P15: 10833.9074
B16: 1162 | C16: Operační sál - lokální | D16: 0 | E16: 0 | F16: 0 | G16: 0 | H16: 0 | I16: 0 | J16: 0 | K16: 10000.5299 | L16: 0 | M16: 0 | N16: 0 | O16: 0 | P16: 10000.5299
B17: 1211 | C17: Lůžkové oddělení | D17: 0 | E17: 0 | F17: 0 | G17: 0 | H17: 534.0044 | I17: 0 | J17: 0 | K17: 0 | L17: 0 | M17: 0 | N17: 0 | O17: 0 | P17: 534.0044
B18: 1321 | C18: Ambulance | D18: 0 | E18: 0 | F18: 0 | G18: 0 | H18: 0 | I18: 0 | J18: 0 | K18: 9028.2561 | L18: 0 | M18: 0 | N18: 0 | O18: 0 | P18: 9028.2561
B19: 1462 | C19: Operační sál - lokální | D19: 6944.8124 | E19: 0 | F19: 0 | G19: 0 | H19: 0 | I19: 0 | J19: 0 | K19: 0 | L19: 0 | M19: 0 | N19: 0 | O19: 0 | P19: 6944.8124
B20: 1721 | C20: Ambulance | D20: 9056.0354 | E20: 0 | F20: 0 | G20: 0 | H20: 0 | I20: 0 | J20: 0 | K20: 0 | L20: 0 | M20: 0 | N20: 0 | O20: 0 | P20: 9056.0354
B21: 1801 | C21: Vedení klinického pracoviště | D21: 0 | E21: 0 | F21: 0 | G21: 0 | H21: 0 | I21: 0 | J21: 0 | K21: 0 | L21: 0 | M21: 6944.8124 | N21: 0 | O21: 0 | P21: 6944.8124
B22: 3341 | C22: Centrální laboratoř | D22: 0 | E22: 0 | F22: 0 | G22: 0 | H22: 0 | I22: 0 | J22: 0 | K22: 0 | L22: 4000.2119 | M22: 0 | N22: 0 | O22: 0 | P22: 4000.2119
B23: 3342 | C23: Laboratoř DMP | D23: 0 | E23: 0 | F23: 0 | G23: 0 | H23: 2066.2252 | I23: 0 | J23: 0 | K23: 0 | L23: 0 | M23: 0 | N23: 0 | O23: 0 | P23: 2066.2252
B24: 9001 | C24: Úsek ředitele | D24: 0 | E24: 0 | F24: 0 | G24: 0 | H24: 0 | I24: 0 | J24: 5055.8234 | K24: 0 | L24: 0 | M24: 0 | N24: 0 | O24: 0 | P24: 5055.8234
B25: 9041 | C25: Útvar ekonomiky a zdravotních pojišťoven | D25: 0 | E25: 0 | F25: 0 | G25: 0 | H25: 0 | I25: 0 | J25: 5055.8234 | K25: 0 | L25: 0 | M25: 0 | N25: 0 | O25: 0 | P25: 5055.8234
B26: 9051 | C26: Útvar hospodářsko technické správy | D26: 1611.1965 | E26: 0 | F26: 0 | G26: 0 | H26: 0 | I26: 0 | J26: 0 | K26: 0 | L26: 0 | M26: 0 | N26: 0 | O26: 0 | P26: 1611.1965
B27: 9204 | C27: Areál FNOL | D27: 13170.3489 | E27: 9722.7374 | F27: 0 | G27: 6657.8367 | H27: 11328.8831 | I27: 60769.9784 | J27: 21507.1083 | K27: 46621.6162 | L27: 9167.1524 | M27: 35315.232 | N27: 66802.8967 | O27: 47095.7001 | P27: 328159.4902
B28: 9601 | C28: Ubytovny | D28: 0 | E28: 0 | F28: 0 | G28: 0 | H28: 2055.6645 | I28: 10556.1149 | J28: 0 | K28: 0 | L28: 0 | M28: 0 | N28: 0 | O28: 0 | P28: 12611.7794
B29: 9655 | C29: Byty | D29: 0 | E29: 0 | F29: 5833.6424 | G29: 0 | H29: 0 | I29: 0 | J29: 0 | K29: 0 | L29: 0 | M29: 4833.5894 | N29: 1750.0927 | O29: 0 | P29: 12417.3245
B30: 9901 | C30: Pronájmy Areál FNO | D30: 0 | E30: 0 | F30: 1916.7682 | G30: 0 | H30: 0 | I30: 0 | J30: 0 | K30: 0 | L30: 0 | M30: 0 | N30: 0 | O30: 0 | P30: 1916.7682
B31: 9910 | C31: Pronájmy Areál Hněvotínská vč.kotelny | D31: 1111.17 | E31: 0 | F31: 0 | G31: 0 | H31: 0 | I31: 0 | J31: 3277.9515 | K31: 0 | L31: 0 | M31: 0 | N31: 0 | O31: 0 | P31: 4389.1215
A34: 51874001 | B34: Ostatní služby - provozní | D34: =SUM(D35:D100) -> 69086.6432 | E34: 1958673.725 | F34: 49691.9405 | G34: 3121108.213 | H34: 1750326.542 | I34: 1841690.63 | J34: 1069627.731 | K34: 670585.3835 | L34: 167931.3355 | M34: 135284.4068 | N34: 143628.3792 | O34: 73365.071 | P34: 11051000
B35: 0101 | C35: Vedení klinického pracoviště | D35: 0 | E35: 0 | F35: 0 | G35: 0 | H35: 0 | I35: 0 | J35: 0 | K35: 0 | L35: 743.6545 | M35: 0 | N35: 0 | O35: 0 | P35: =SUM(D35:O35) -> 743.6545
B36: 0231 | C36: JIP 30D | D36: 0 | E36: 0 | F36: 0 | G36: 0 | H36: 0 | I36: 0 | J36: 0 | K36: 0 | L36: 11877.6497 | M36: 0 | N36: 0 | O36: 0 | P36: =SUM(D36:O36) -> 11877.6497
B37: 0321 | C37: Ambulance | D37: 0 | E37: 0 | F37: 0 | G37: 0 | H37: 0 | I37: 0 | J37: 0 | K37: 0 | L37: 0 | M37: 0 | N37: 980.1366 | O37: 0 | P37: 980.1366
B38: 0801 | C38: Vedení klinického pracoviště | D38: 4957.6967 | E38: 0 | F38: 0 | G38: 0 | H38: 0 | I38: 0 | J38: 44.6193 | K38: 0 | L38: 0 | M38: 0 | N38: 0 | O38: 0 | P38: 5002.316
B39: 1112 | C39: Lůžkové oddělení 29B | D39: 0 | E39: 0 | F39: 0 | G39: 0 | H39: 0 | I39: 74.3654 | J39: 0 | K39: 0 | L39: 0 | M39: 0 | N39: 0 | O39: 0 | P39: 74.3654
B40: 1704 | C40: OP VVV - Molekulární, buněčný a klinický přístup ke zdravému stárnutí | D40: 0 | E40: 0 | F40: 0 | G40: 0 | H40: 0 | I40: 0 | J40: 0 | K40: 0 | L40: 671.7679 | M40: 0 | N40: 0 | O40: 0 | P40: 671.7679
B41: 2622 | C41: RHC ambulance + kineziologie,kinezioterapie | D41: 0 | E41: 0 | F41: 0 | G41: 0 | H41: 0 | I41: 371.8272 | J41: 0 | K41: 0 | L41: 0 | M41: 0 | N41: 0 | O41: 0 | P41: 371.8272
B42: 3341 | C42: Centrální laboratoř | D42: 0 | E42: 0 | F42: 0 | G42: 0 | H42: 0 | I42: 0 | J42: 0 | K42: 0 | L42: 0 | M42: 0 | N42: 4109.4348 | O42: 0 | P42: 4109.4348
B43: 3590 | C43: Výroba | D43: 0 | E43: 0 | F43: 0 | G43: 0 | H43: 0 | I43: 0 | J43: 0 | K43: 0 | L43: 0 | M43: 0 | N43: 849.2534 | O43: 0 | P43: 849.2534
B44: 4141 | C44: Imunologie - laboratoř | D44: 24895.0738 | E44: 0 | F44: 0 | G44: 0 | H44: 0 | I44: 0 | J44: 0 | K44: 0 | L44: 0 | M44: 0 | N44: 0 | O44: 0 | P44: 24895.0738
B45: 4764 | C45: Centrální operační sály | D45: 0 | E45: 0 | F45: 0 | G45: 0 | H45: 0 | I45: 0 | J45: 0 | K45: 0 | L45: 267.7156 | M45: 0 | N45: 0 | O45: 0 | P45: 267.7156
B46: 5693 | C46: Oddělení centrální sterilizace | D46: 0 | E46: 0 | F46: 0 | G46: 0 | H46: 0 | I46: 0 | J46: 0 | K46: 0 | L46: 1133.3295 | M46: 0 | N46: 0 | O46: 0 | P46: 1133.3295
B47: 8108 | C47: Klinická hodnocení - Porodnicko-gynekologická klinika | D47: 0 | E47: 0 | F47: 0 | G47: 0 | H47: 0 | I47: 0 | J47: 0 | K47: 0 | L47: 0 | M47: 3217.5451 | N47: 0 | O47: 0 | P47: 3217.5451
B48: 8121 | C48: Klinická hodnocení - Onkologická klinika | D48: 0 | E48: 0 | F48: 0 | G48: 0 | H48: 0 | I48: 0 | J48: 0 | K48: 0 | L48: 0 | M48: 0 | N48: 1239.4242 | O48: 0 | P48: 1239.4242
B49: 8507 | C49: Prof. MUDr. Vítězslav Kolek, DrSc. - PLIC | D49: 0 | E49: 0 | F49: 0 | G49: 0 | H49: 0 | I49: 0 | J49: 0 | K49: 0 | L49: 361.9119 | M49: 0 | N49: 0 | O49: 0 | P49: 361.9119
B50: 8509 | C50: Doc. MUDr. Daniel Šaňák, PhD. - NEUROL | D50: 0 | E50: 0 | F50: 0 | G50: 0 | H50: 0 | I50: 0 | J50: 0 | K50: 0 | L50: 0 | M50: 347.9312 | N50: 0 | O50: 0 | P50: 347.9312
B51: 8510 | C51: Doc. MUDr. Petr Hamal, PhD. - MIKRO | D51: 0 | E51: 0 | F51: 0 | G51: 0 | H51: 0 | I51: 0 | J51: 419.9169 | K51: 6120.4996 | L51: 0 | M51: 0 | N51: 386.9234 | O51: 0 | P51: 6927.3399
B52: 8533 | C52: MUDr. Milan Král, Ph.D. - UROL | D52: 0 | E52: 0 | F52: 0 | G52: 0 | H52: 0 | I52: 0 | J52: 0 | K52: 0 | L52: 0 | M52: 0 | N52: 644.5006 | O52: 0 | P52: 644.5006
B53: 8541 | C53: MUDr. Richard Salzman, Ph.D. - ORL | D53: 0 | E53: 0 | F53: 0 | G53: 0 | H53: 0 | I53: 0 | J53: 0 | K53: 0 | L53: 14873.09 | M53: 0 | N53: 0 | O53: 0 | P53: 14873.09
B54: 8555 | C54: Doc. RNDr. Radek Vrtěl, PhD. - GENETIKA | D54: 0 | E54: 0 | F54: 0 | G54: 0 | H54: 0 | I54: 0 | J54: 0 | K54: 117.9932 | L54: 0 | M54: 84.2808 | N54: 4957.6967 | O54: 0 | P54: 5159.9707
B55: 8556 | C55: MUDr. Tomáš Veverka, PhD. - NEUROL | D55: 0 | E55: 0 | F55: 0 | G55: 40394.0284 | H55: 0 | I55: 0 | J55: 2190.8062 | K55: 0 | L55: 0 | M55: 206.959 | N55: 0 | O55: 0 | P55: 42791.7936
B56: 8558 | C56: MUDr. Filip Čtvrtlík, PhD. - RTG | D56: 0 | E56: 0 | F56: 0 | G56: 0 | H56: 0 | I56: 3966.1573 | J56: 0 | K56: 22148.0141 | L56: 4957.6967 | M56: 0 | N56: 3966.1573 | O56: 0 | P56: 35038.0254
B57: 8559 | C57: MUDr. JUDr. Dušan Klos, Ph.D. - I.CHIR | D57: 0 | E57: 0 | F57: 0 | G57: 0 | H57: 0 | I57: 0 | J57: 0 | K57: 0 | L57: 3420.3149 | M57: 0 | N57: 0 | O57: 0 | P57: 3420.3149
B58: 8563 | C58: Doc. MUDr. Jan Minařík, Ph.D. - HOK | D58: 0 | E58: 0 | F58: 0 | G58: 0 | H58: 0 | I58: 0 | J58: 0 | K58: 719.8576 | L58: 0 | M58: 0 | N58: 0 | O58: 0 | P58: 719.8576
B59: 8565 | C59: Prof. MUDr. Ing. Petr Hluštík, Ph.D. - NEUROL | D59: 0 | E59: 0 | F59: 0 | G59: 0 | H59: 0 | I59: 0 | J59: 0 | K59: 0 | L59: 0 | M59: 1604.8064 | N59: 0 | O59: 0 | P59: 1604.8064
B60: 8709 | C60: RIV: MUDr. Aleš Grambal, PhD. | D60: 0 | E60: 0 | F60: 0 | G60: 0 | H60: 0 | I60: 0 | J60: 0 | K60: 0 | L60: 0 | M60: 0 | N60: 38957.8878 | O60: 0 | P60: 38957.8878
B61: 8710 | C61: RIV: MUDr. Štefan Trnka | D61: 0 | E61: 0 | F61: 0 | G61: 0 | H61: 0 | I61: 0 | J61: 559.2282 | K61: 410.9931 | L61: 0 | M61: 21212.9925 | N61: 3390.073 | O61: 0 | P61: 25573.2868
B62: 8712 | C62: RIV: prof. MUDr. Jiří Gallo, PhD. | D62: 0 | E62: 0 | F62: 0 | G62: 0 | H62: 0 | I62: 0 | J62: 0 | K62: 0 | L62: 31134.3351 | M62: 0 | N62: 0 | O62: 0 | P62: 31134.3351
B63: 8715 | C63: RIV: MUDr. Karel Huml | D63: 0 | E63: 0 | F63: 0 | G63: 0 | H63: 0 | I63: 0 | J63: 0 | K63: 0 | L63: 0 | M63: 0 | N63: 46653.5369 | O63: 0 | P63: 46653.5369
B64: 8716 | C64: RIV: MUDr. Beáta Hutyrová, PhD. | D64: 0 | E64: 0 | F64: 0 | G64: 0 | H64: 0 | I64: 0 | J64: 0 | K64: 0 | L64: 491.8035 | M64: 0 | N64: 0 | O64: 0 | P64: 491.8035
B65: 8720 | C65: RIV: MUDr. Petr Kolář, PhD. | D65: 0 | E65: 0 | F65: 0 | G65: 2943.3845 | H65: 0 | I65: 0 | J65: 0 | K65: 0 | L65: 760.6495 | M65: 0 | N65: 0 | O65: 0 | P65: 3704.034
B66: 8721 | C66: RIV: MUDr. Andrea Smržová | D66: 0 | E66: 0 | F66: 0 | G66: 0 | H66: 0 | I66: 15362.96 | J66: 0 | K66: 0 | L66: 991.0436 | M66: 0 | N66: 0 | O66: 0 | P66: 16354.0036
B67: 8725 | C67: RIV: MUDr. Helena Urbánková | D67: 0 | E67: 0 | F67: 0 | G67: 0 | H67: 233.2398 | I67: 0 | J67: 864.1265 | K67: 0 | L67: 9714.8743 | M67: 432.3111 | N67: 0 | O67: 2289.028 | P67: 13533.5797
B68: 8753 | C68: RIV: MUDr. Richard Salzmann, Ph.D. | D68: 0 | E68: 0 | F68: 0 | G68: 4957.6967 | H68: 0 | I68: 0 | J68: 0 | K68: 0 | L68: 0 | M68: 0 | N68: 0 | O68: 0 | P68: 4957.6967
B69: 8755 | C69: RIV - MUDr. Roman Hájek, Ph. D. | D69: 0 | E69: 0 | F69: 0 | G69: 0 | H69: 14112.2025 | I69: 0 | J69: 551.7916 | K69: 0 | L69: 0 | M69: 0 | N69: 0 | O69: 0 | P69: 14663.9941
B70: 8760 | C70: RIV: RNDr. Martin Novák, Ph.D. | D70: 0 | E70: 0 | F70: 0 | G70: 0 | H70: 0 | I70: 359.9288 | J70: 0 | K70: 0 | L70: 0 | M70: 0 | N70: 26994.6583 | O70: 1689.8061 | P70: 29044.3932
B71: 8762 | C71: RIV - Doc. MUDr. David Karásek, Ph. D. | D71: 9915.3933 | E71: 0 | F71: 4957.6967 | G71: 0 | H71: 0 | I71: 0 | J71: 0 | K71: 9518.7776 | L71: 0 | M71: 3905.3512 | N71: 5475.9495 | O71: 0 | P71: 33773.1683
B72: 8767 | C72: RIV - Prof. MUDr. Jiří Gallo, Ph. D. | D72: 0 | E72: 0 | F72: 0 | G72: 0 | H72: 0 | I72: 0 | J72: 9756.747 | K72: 21560.77 | L72: 0 | M72: 0 | N72: 4799.0504 | O72: 0 | P72: 36116.5674
B73: 8768 | C73: RIV - Doc. MUDr. Karel Krejčí, Ph. D. | D73: 0 | E73: 0 | F73: 0 | G73: 0 | H73: 0 | I73: 0 | J73: 0 | K73: 0 | L73: 0 | M73: 0 | N73: 12070.5041 | O73: 0 | P73: 12070.5041
B74: 8773 | C74: RIV - MUDr. Jan Hálek, Ph.D. | D74: 0 | E74: 0 | F74: 0 | G74: 0 | H74: 0 | I74: 24788.4833 | J74: 0 | K74: 0 | L74: 0 | M74: 0 | N74: 0 | O74: 0 | P74: 24788.4833
B75: 8780 | C75: RIV - MUDr. Eva Karásková | D75: 0 | E75: 3878.9019 | F75: 0 | G75: 0 | H75: 0 | I75: 0 | J75: 0 | K75: 330.1826 | L75: 2160.5642 | M75: 0 | N75: 1933.5017 | O75: 0 | P75: 8303.1504
B76: 8781 | C76: RIV - Doc. MUDr. Jiří Minařík, Ph. D. | D76: 0 | E76: 0 | F76: 24788.4833 | G76: 378.2723 | H76: 0 | I76: 0 | J76: 0 | K76: 719.8576 | L76: 1900.1661 | M76: 0 | N76: 899.8219 | O76: 0 | P76: 28686.6012
B77: 8782 | C77: RIV - RNDr. Pavlína Čapková, Ph. D. | D77: 0 | E77: 0 | F77: 14037.2223 | G77: 0 | H77: 0 | I77: 0 | J77: 378.2723 | K77: 0 | L77: 0 | M77: 15479.798 | N77: 0 | O77: 0 | P77: 29895.2926
B78: 8783 | C78: RIV - MUDr. Eva Klásková, Ph. D. | D78: 0 | E78: 0 | F78: 0 | G78: 0 | H78: 358.9372 | I78: 0 | J78: 0 | K78: 0 | L78: 4957.6967 | M78: 4773.7661 | N78: 0 | O78: 0 | P78: 10090.4
B79: 8785 | C79: RIV - Doc. MUDr. Martin Hutyra, Ph. D. | D79: 0 | E79: 0 | F79: 0 | G79: 0 | H79: 0 | I79: 0 | J79: 0 | K79: 0 | L79: 7436.545 | M79: 0 | N79: 0 | O79: 0 | P79: 7436.545
B80: 8786 | C80: RIV - MUDr. Pavel Hok | D80: 0 | E80: 0 | F80: 0 | G80: 0 | H80: 0 | I80: 0 | J80: 39700.3227 | K80: 0 | L80: 0 | M80: 0 | N80: 0 | O80: 0 | P80: 39700.3227
B81: 8787 | C81: RIV - Dr. Gvansta Kharaishvili, Ph. D. | D81: 0 | E81: 0 | F81: 0 | G81: 24788.4833 | H81: 0 | I81: 0 | J81: 0 | K81: 576.0844 | L81: 0 | M81: 0 | N81: 0 | O81: 0 | P81: 25364.5677
B82: 8791 | C82: RIV - Doc. Mgr. Luděk Slavík, Ph. D. - MEX | D82: 0 | E82: 0 | F82: 1007.8997 | G82: 1580.5137 | H82: 0 | I82: 1320.7304 | J82: 838.8423 | K82: 16773.3206 | L82: 245.9018 | M82: 4980.9978 | N82: 0 | O82: 0 | P82: 26748.2063
B83: 8792 | C83: RIV - Prof. MUDr. Jiří Gallo, Ph. D. - MEX | D83: 4799.0504 | E83: 0 | F83: 0 | G83: 0 | H83: 0 | I83: 1421.2526 | J83: 0 | K83: 980.6324 | L83: 13508.8112 | M83: 432.3111 | N83: 6009.8191 | O83: 0 | P83: 27151.8768
B84: 8794 | C84: RIV: MUDr. Martin Loveček, PhD. - MEX | D84: 0 | E84: 0 | F84: 0 | G84: 0 | H84: 0 | I84: 0 | J84: 731.2603 | K84: 0 | L84: 0 | M84: 4957.6967 | N84: 0 | O84: 0 | P84: 5688.957
B85: 9001 | C85: Úsek ředitele | D85: 4409.3754 | E85: 899.8219 | F85: 0 | G85: 0 | H85: 0 | I85: 5418.8517 | J85: 0 | K85: 0 | L85: 1367.7294 | M85: 0 | N85: 19830.7867 | O85: 19743.8287 | P85: 51670.3938
B86: 9010 | C86: Organizace plesu FN | D86: 0 | E86: 0 | F86: 338.9577 | G86: 0 | H86: 0 | I86: 0 | J86: 0 | K86: 0 | L86: 0 | M86: 0 | N86: 0 | O86: 0 | P86: 338.9577
B87: 9028 | C87: Oddělení vědy a výzkumu | D87: 0 | E87: 0 | F87: 0 | G87: 40542.68 | H87: 0 | I87: 0 | J87: 4957.6967 | K87: 0 | L87: 1153.1602 | M87: 0 | N87: -46041.6579 | O87: 0 | P87: 611.879
B88: 9041 | C88: Útvar ekonomiky a zdravotních pojišťoven | D88: 9798.0446 | E88: 0 | F88: 127.4128 | G88: 0 | H88: 0 | I88: 0 | J88: 0 | K88: 0 | L88: 0 | M88: 0 | N88: 0 | O88: 0 | P88: 9925.4574
B89: 9051 | C89: Útvar hospodářsko technické správy | D89: 7436.545 | E89: 0 | F89: 0 | G89: 1735.1938 | H89: 0 | I89: 0 | J89: 0 | K89: 44.6193 | L89: 1239.4242 | M89: 0 | N89: 0 | O89: 0 | P89: 10455.7823
B90: 9081 | C90: Úsek informačních technologií | D90: 0 | E90: 0 | F90: 0 | G90: 0 | H90: 0 | I90: 1008.8913 | J90: 0 | K90: 0 | L90: 0 | M90: 0 | N90: 0 | O90: 0 | P90: 1008.8913
B91: 9084 | C91: Oddělení centrální spisovny | D91: 0 | E91: 0 | F91: 0 | G91: 0 | H91: 0 | I91: 0 | J91: 0 | K91: 0 | L91: 0 | M91: 0 | N91: 2099.5845 | O91: 0 | P91: 2099.5845
B92: 9091 | C92: Obchodní úsek | D92: 0 | E92: 0 | F92: 0 | G92: 0 | H92: 0 | I92: 0 | J92: 0 | K92: 0 | L92: 0 | M92: 0 | N92: 3422.8929 | O92: 0 | P92: 3422.8929
B93: 9096 | C93: Odbor marketingu | D93: 849.2534 | E93: 0 | F93: 0 | G93: 0 | H93: 0 | I93: 0 | J93: 0 | K93: 0 | L93: 0 | M93: 0 | N93: -1.5567 | O93: 0 | P93: 847.6967
B94: 9204 | C94: Areál FNOL | D94: 0 | E94: 0 | F94: 0 | G94: 19796.0828 | H94: 806224.2854 | I94: 1787597.182 | J94: 1021351.584 | K94: 590563.7814 | L94: 52561.5 | M94: 64991.5214 | N94: 0 | O94: 49642.4082 | P94: 4392728.345
B95: 9209 | C95: Areál - ulice Profesora Fuky | D95: 0 | E95: 1953895.001 | F95: 4434.268 | G95: 2983991.878 | H95: 929397.8773 | I95: 0 | J95: -12717.4835 | K95: 0 | L95: 0 | M95: 0 | N95: 0 | O95: 0 | P95: 5859001.54
B96: 9405 | C96: Provoz dopravy - sanitní - převoz zdrav. pojišťovny | D96: 2026.2106 | E96: 0 | F96: 0 | G96: 0 | H96: 0 | I96: 0 | J96: 0 | K96: 0 | L96: 0 | M96: 0 | N96: 0 | O96: 0 | P96: 2026.2106
B97: 9819 | C97: TranMZČR: Bezpečnost a kvalita zdravotní péče | D97: 0 | E97: 0 | F97: 0 | G97: 0 | H97: 0 | I97: 0 | J97: 0 | K97: 0 | L97: 0 | M97: 8656.1384 | N97: 0 | O97: 0 | P97: 8656.1384

Sheet 2_Upravený (hidden)
A1: Legenda | C1: Hodnoty v CZK | Q1: Rozdíl
A2: Účet | B2: Název účtu
B3: NS | C3: Název NS | D3: 202001 | E3: 202002 | F3: 202003 | G3: 202004 | H3: 202005 | I3: 202006 | J3: 202007 | K3: 202008 | L3: 202009 | M3: 202010 | N3: 202011 | O3: 202012 | P3: 2020 celkem | Q3: =SUM(Q4:Q33) -> 0
A5: 51805001 | B5: Průzkumné a projektové práce | D5: =SUM(D6:D32) -> 41666.66667 | E5: 41666.66667 | F5: 41666.66667 | G5: 41666.66667 | H5: 41666.66667 | I5: 41666.66667 | J5: 41666.66667 | K5: 41666.66667 | L5: 41666.66667 | M5: 41666.66667 | N5: 41666.66667 | O5: 41666.66667 | P5: 500000 | Q5: =ROUND(P5-SUMIF('1_Původní'!A:A,'2_Upravený'!A5,'1_Původní'!P:P),0) -> 0
B6: 0111 | C6: Lůžkové oddělení 1 | D6: 0 | E6: 0 | F6: 0 | G6: 0 | H6: 0 | I6: 0 | J6: 0 | K6: 0 | L6: 0 | M6: 0 | N6: 0 | O6: 0 | P6: =SUM(D6:O6) -> 0 | Q6: =IF(AND(ROUND(P6,0)<>0,B6=""),"Obrat bez specifikace NS","") ->  | S6: Orig | T6: =$A$5 -> 51805001
B7: 0301 | C7: Vedení klinického pracoviště | D7: 0 | E7: 0 | F7: 0 | G7: 0 | H7: 0 | I7: 0 | J7: 0 | K7: 0 | L7: 0 | M7: 0 | N7: 0 | O7: 0 | P7: =SUM(D7:O7) -> 0 | Q7: =IF(AND(ROUND(P7,0)<>0,B7=""),"Obrat bez specifikace NS","") ->  | S7: Orig | T7: =$A$5 -> 51805001
B8: 0811 | C8: Lůžkové oddělení 19B (šestinedělí) | D8: 0 | E8: 0 | F8: 0 | G8: 0 | H8: 0 | I8: 0 | J8: 0 | K8: 0 | L8: 0 | M8: 0 | N8: 0 | O8: 0 | P8: 0 | S8: Orig | T8: 51805001
B9: 0832 | C9: JIP 19 (porodní sál) | D9: 0 | E9: 0 | F9: 0 | G9: 0 | H9: 0 | I9: 0 | J9: 0 | K9: 0 | L9: 0 | M9: 0 | N9: 0 | O9: 0 | P9: 0 | S9: Orig | T9: 51805001
B10: 0862 | C10: Porodní sál - lokální | D10: 0 | E10: 0 | F10: 0 | G10: 0 | H10: 0 | I10: 0 | J10: 0 | K10: 0 | L10: 0 | M10: 0 | N10: 0 | O10: 0 | P10: 0 | S10: Orig | T10: 51805001
B11: 0863 | C11: Operační sál OP 17 (z 08 62) | D11: 0 | E11: 0 | F11: 0 | G11: 0 | H11: 0 | I11: 0 | J11: 0 | K11: 0 | L11: 0 | M11: 0 | N11: 0 | O11: 0 | P11: 0 | S11: Orig | T11: 51805001
B12: 0931 | C12: JIP 16A +16D | D12: 0 | E12: 0 | F12: 0 | G12: 0 | H12: 0 | I12: 0 | J12: 0 | K12: 0 | L12: 0 | M12: 0 | N12: 0 | O12: 0 | P12: 0 | S12: Orig | T12: 51805001
B13: 1001 | C13: Vedení klinického pracoviště | D13: 0 | E13: 0 | F13: 0 | G13: 0 | H13: 0 | I13: 0 | J13: 0 | K13: 0 | L13: 0 | M13: 0 | N13: 0 | O13: 0 | P13: 0 | S13: Orig | T13: 51805001
B14: 1012 | C14: Lůžkové oddělení 28C vč.dospávací haly | D14: 0 | E14: 0 | F14: 0 | G14: 0 | H14: 0 | I14: 0 | J14: 0 | K14: 0 | L14: 0 | M14: 0 | N14: 0 | O14: 0 | P14: 0 | S14: Orig | T14: 51805001
B15: 1121 | C15: Ambulance | D15: 0 | E15: 0 | F15: 0 | G15: 0 | H15: 0 | I15: 0 | J15: 0 | K15: 0 | L15: 0 | M15: 0 | N15: 0 | O15: 0 | P15: 0 | S15: Orig | T15: 51805001
B16: 1162 | C16: Operační sál - lokální | D16: 0 | E16: 0 | F16: 0 | G16: 0 | H16: 0 | I16: 0 | J16: 0 | K16: 0 | L16: 0 | M16: 0 | N16: 0 | O16: 0 | P16: 0 | S16: Orig | T16: 51805001
B17: 1211 | C17: Lůžkové oddělení | D17: 0 | E17: 0 | F17: 0 | G17: 0 | H17: 0 | I17: 0 | J17: 0 | K17: 0 | L17: 0 | M17: 0 | N17: 0 | O17: 0 | P17: 0 | S17: Orig | T17: 51805001
B18: 1321 | C18: Ambulance | D18: 0 | E18: 0 | F18: 0 | G18: 0 | H18: 0 | I18: 0 | J18: 0 | K18: 0 | L18: 0 | M18: 0 | N18: 0 | O18: 0 | P18: 0 | S18: Orig | T18: 51805001
B19: 1462 | C19: Operační sál - lokální | D19: 0 | E19: 0 | F19: 0 | G19: 0 | H19: 0 | I19: 0 | J19: 0 | K19: 0 | L19: 0 | M19: 0 | N19: 0 | O19: 0 | P19: 0 | S19: Orig | T19: 51805001
B20: 1721 | C20: Ambulance | D20: 0 | E20: 0 | F20: 0 | G20: 0 | H20: 0 | I20: 0 | J20: 0 | K20: 0 | L20: 0 | M20: 0 | N20: 0 | O20: 0 | P20: 0 | S20: Orig | T20: 51805001
B21: 1801 | C21: Vedení klinického pracoviště | D21: 0 | E21: 0 | F21: 0 | G21: 0 | H21: 0 | I21: 0 | J21: 0 | K21: 0 | L21: 0 | M21: 0 | N21: 0 | O21: 0 | P21: 0 | S21: Orig | T21: 51805001
B22: 3341 | C22: Centrální laboratoř | D22: 0 | E22: 0 | F22: 0 | G22: 0 | H22: 0 | I22: 0 | J22: 0 | K22: 0 | L22: 0 | M22: 0 | N22: 0 | O22: 0 | P22: 0 | S22: Orig | T22: 51805001
B23: 3342 | C23: Laboratoř DMP | D23: 0 | E23: 0 | F23: 0 | G23: 0 | H23: 0 | I23: 0 | J23: 0 | K23: 0 | L23: 0 | M23: 0 | N23: 0 | O23: 0 | P23: 0 | S23: Orig | T23: 51805001
B24: 9001 | C24: Úsek ředitele | D24: 0 | E24: 0 | F24: 0 | G24: 0 | H24: 0 | I24: 0 | J24: 0 | K24: 0 | L24: 0 | M24: 0 | N24: 0 | O24: 0 | P24: 0 | S24: Orig | T24: 51805001
B25: 9041 | C25: Útvar ekonomiky a zdravotních pojišťoven | D25: 0 | E25: 0 | F25: 0 | G25: 0 | H25: 0 | I25: 0 | J25: 0 | K25: 0 | L25: 0 | M25: 0 | N25: 0 | O25: 0 | P25: 0 | S25: Orig | T25: 51805001
B26: 9051 | C26: Útvar hospodářsko technické správy | D26: 41666.66667 | E26: 41666.66667 | F26: 41666.66667 | G26: 41666.66667 | H26: 41666.66667 | I26: 41666.66667 | J26: 41666.66667 | K26: 41666.66667 | L26: 41666.66667 | M26: 41666.66667 | N26: 41666.66667 | O26: 41666.66667 | P26: 500000 | S26: Orig | T26: 51805001
B27: 9204 | C27: Areál FNOL | D27: 0 | E27: 0 | F27: 0 | G27: 0 | H27: 0 | I27: 0 | J27: 0 | K27: 0 | L27: 0 | M27: 0 | N27: 0 | O27: 0 | P27: 0 | S27: Orig | T27: 51805001
B28: 9601 | C28: Ubytovny | D28: 0 | E28: 0 | F28: 0 | G28: 0 | H28: 0 | I28: 0 | J28: 0 | K28: 0 | L28: 0 | M28: 0 | N28: 0 | O28: 0 | P28: 0 | S28: Orig | T28: 51805001
B29: 9655 | C29: Byty | D29: 0 | E29: 0 | F29: 0 | G29: 0 | H29: 0 | I29: 0 | J29: 0 | K29: 0 | L29: 0 | M29: 0 | N29: 0 | O29: 0 | P29: 0 | S29: Orig | T29: 51805001
B30: 9901 | C30: Pronájmy Areál FNO | D30: 0 | E30: 0 | F30: 0 | G30: 0 | H30: 0 | I30: 0 | J30: 0 | K30: 0 | L30: 0 | M30: 0 | N30: 0 | O30: 0 | P30: 0 | S30: Orig | T30: 51805001
B31: 9910 | C31: Pronájmy Areál Hněvotínská vč.kotelny | D31: 0 | E31: 0 | F31: 0 | G31: 0 | H31: 0 | I31: 0 | J31: 0 | K31: 0 | L31: 0 | M31: 0 | N31: 0 | O31: 0 | P31: 0 | S31: Orig | T31: 51805001
C32: =IFERROR(VLOOKUP(B32,CisNS!$A:$B,2,FALSE),"") ->  | P32: =SUM(D32:O32) -> 0 | Q32: =IF(AND(ROUND(P32,0)<>0,B32=""),"Obrat bez specifikace NS","") ->  | T32: =T6 -> 51805001 | U32: End
A34: 51874001 | B34: Ostatní služby - provozní | D34: =SUM(D35:D100) -> 920916.6667 | E34: 920916.6667 | F34: 920916.6667 | G34: 920916.6667 | H34: 920916.6667 | I34: 920916.6667 | J34: 920916.6667 | K34: 920916.6667 | L34: 920916.6667 | M34: 920916.6667 | N34: 920916.6667 | O34: 920916.6667 | P34: 11051000 | Q34: =ROUND(P34-SUMIF('1_Původní'!A:A,'2_Upravený'!A34,'1_Původní'!P:P),0) -> 0
B35: 0101 | C35: Vedení klinického pracoviště | D35: 0 | E35: 0 | F35: 0 | G35: 0 | H35: 0 | I35: 0 | J35: 0 | K35: 0 | L35: 0 | M35: 0 | N35: 0 | O35: 0 | P35: =SUM(D35:O35) -> 0 | Q35: =IF(AND(ROUND(P35,0)<>0,B35=""),"Obrat bez specifikace NS","") ->  | S35: Orig | T35: =$A$34 -> 51874001
B36: 0231 | C36: JIP 30D | D36: 0 | E36: 0 | F36: 0 | G36: 0 | H36: 0 | I36: 0 | J36: 0 | K36: 0 | L36: 0 | M36: 0 | N36: 0 | O36: 0 | P36: =SUM(D36:O36) -> 0 | Q36: =IF(AND(ROUND(P36,0)<>0,B36=""),"Obrat bez specifikace NS","") ->  | S36: Orig | T36: =$A$34 -> 51874001
B37: 0321 | C37: Ambulance | D37: 0 | E37: 0 | F37: 0 | G37: 0 | H37: 0 | I37: 0 | J37: 0 | K37: 0 | L37: 0 | M37: 0 | N37: 0 | O37: 0 | P37: 0 | S37: Orig | T37: 51874001
B38: 0801 | C38: Vedení klinického pracoviště | D38: 0 | E38: 0 | F38: 0 | G38: 0 | H38: 0 | I38: 0 | J38: 0 | K38: 0 | L38: 0 | M38: 0 | N38: 0 | O38: 0 | P38: 0 | S38: Orig | T38: 51874001
B39: 1112 | C39: Lůžkové oddělení 29B | D39: 0 | E39: 0 | F39: 0 | G39: 0 | H39: 0 | I39: 0 | J39: 0 | K39: 0 | L39: 0 | M39: 0 | N39: 0 | O39: 0 | P39: 0 | S39: Orig | T39: 51874001
B40: 1704 | C40: OP VVV - Molekulární, buněčný a klinický přístup ke zdravému stárnutí | D40: 50000 | E40: 50000 | F40: 50000 | G40: 50000 | H40: 50000 | I40: 50000 | J40: 50000 | K40: 50000 | L40: 50000 | M40: 50000 | N40: 50000 | O40: 50000 | P40: =SUM(D40:O40) -> 600000 | S40: Orig | T40: 51874001
B41: 2622 | C41: RHC ambulance + kineziologie,kinezioterapie | D41: 0 | E41: 0 | F41: 0 | G41: 0 | H41: 0 | I41: 0 | J41: 0 | K41: 0 | L41: 0 | M41: 0 | N41: 0 | O41: 0 | P41: 0 | S41: Orig | T41: 51874001
B42: 3341 | C42: Centrální laboratoř | D42: 0 | E42: 0 | F42: 0 | G42: 0 | H42: 0 | I42: 0 | J42: 0 | K42: 0 | L42: 0 | M42: 0 | N42: 0 | O42: 0 | P42: 0 | S42: Orig | T42: 51874001
B43: 3590 | C43: Výroba | D43: 0 | E43: 0 | F43: 0 | G43: 0 | H43: 0 | I43: 0 | J43: 0 | K43: 0 | L43: 0 | M43: 0 | N43: 0 | O43: 0 | P43: 0 | S43: Orig | T43: 51874001
B44: 4141 | C44: Imunologie - laboratoř | D44: 0 | E44: 0 | F44: 0 | G44: 0 | H44: 0 | I44: 0 | J44: 0 | K44: 0 | L44: 0 | M44: 0 | N44: 0 | O44: 0 | P44: 0 | S44: Orig | T44: 51874001
B45: 4764 | C45: Centrální operační sály | D45: 0 | E45: 0 | F45: 0 | G45: 0 | H45: 0 | I45: 0 | J45: 0 | K45: 0 | L45: 0 | M45: 0 | N45: 0 | O45: 0 | P45: 0 | S45: Orig | T45: 51874001
B46: 5693 | C46: Oddělení centrální sterilizace | D46: 0 | E46: 0 | F46: 0 | G46: 0 | H46: 0 | I46: 0 | J46: 0 | K46: 0 | L46: 0 | M46: 0 | N46: 0 | O46: 0 | P46: 0 | S46: Orig | T46: 51874001
B47: 8108 | C47: Klinická hodnocení - Porodnicko-gynekologická klinika | D47: 0 | E47: 0 | F47: 0 | G47: 0 | H47: 0 | I47: 0 | J47: 0 | K47: 0 | L47: 0 | M47: 0 | N47: 0 | O47: 0 | P47: 0 | S47: Orig | T47: 51874001
B48: 8121 | C48: Klinická hodnocení - Onkologická klinika | D48: 0 | E48: 0 | F48: 0 | G48: 0 | H48: 0 | I48: 0 | J48: 0 | K48: 0 | L48: 0 | M48: 0 | N48: 0 | O48: 0 | P48: 0 | S48: Orig | T48: 51874001
B49: 8507 | C49: Prof. MUDr. Vítězslav Kolek, DrSc. - PLIC | D49: 0 | E49: 0 | F49: 0 | G49: 0 | H49: 0 | I49: 0 | J49: 0 | K49: 0 | L49: 0 | M49: 0 | N49: 0 | O49: 0 | P49: 0 | S49: Orig | T49: 51874001
B50: 8509 | C50: Doc. MUDr. Daniel Šaňák, PhD. - NEUROL | D50: 0 | E50: 0 | F50: 0 | G50: 0 | H50: 0 | I50: 0 | J50: 0 | K50: 0 | L50: 0 | M50: 0 | N50: 0 | O50: 0 | P50: 0 | S50: Orig | T50: 51874001
B51: 8510 | C51: Doc. MUDr. Petr Hamal, PhD. - MIKRO | D51: 0 | E51: 0 | F51: 0 | G51: 0 | H51: 0 | I51: 0 | J51: 0 | K51: 0 | L51: 0 | M51: 0 | N51: 0 | O51: 0 | P51: 0 | S51: Orig | T51: 51874001
B52: 8533 | C52: MUDr. Milan Král, Ph.D. - UROL | D52: 0 | E52: 0 | F52: 0 | G52: 0 | H52: 0 | I52: 0 | J52: 0 | K52: 0 | L52: 0 | M52: 0 | N52: 0 | O52: 0 | P52: 0 | S52: Orig | T52: 51874001
B53: 8541 | C53: MUDr. Richard Salzman, Ph.D. - ORL | D53: 0 | E53: 0 | F53: 0 | G53: 0 | H53: 0 | I53: 0 | J53: 0 | K53: 0 | L53: 0 | M53: 0 | N53: 0 | O53: 0 | P53: 0 | S53: Orig | T53: 51874001
B54: 8555 | C54: Doc. RNDr. Radek Vrtěl, PhD. - GENETIKA | D54: 0 | E54: 0 | F54: 0 | G54: 0 | H54: 0 | I54: 0 | J54: 0 | K54: 0 | L54: 0 | M54: 0 | N54: 0 | O54: 0 | P54: 0 | S54: Orig | T54: 51874001
B55: 8556 | C55: MUDr. Tomáš Veverka, PhD. - NEUROL | D55: 0 | E55: 0 | F55: 0 | G55: 0 | H55: 0 | I55: 0 | J55: 0 | K55: 0 | L55: 0 | M55: 0 | N55: 0 | O55: 0 | P55: 0 | S55: Orig | T55: 51874001
B56: 8558 | C56: MUDr. Filip Čtvrtlík, PhD. - RTG | D56: 0 | E56: 0 | F56: 0 | G56: 0 | H56: 0 | I56: 0 | J56: 0 | K56: 0 | L56: 0 | M56: 0 | N56: 0 | O56: 0 | P56: 0 | S56: Orig | T56: 51874001
B57: 8559 | C57: MUDr. JUDr. Dušan Klos, Ph.D. - I.CHIR | D57: 0 | E57: 0 | F57: 0 | G57: 0 | H57: 0 | I57: 0 | J57: 0 | K57: 0 | L57: 0 | M57: 0 | N57: 0 | O57: 0 | P57: 0 | S57: Orig | T57: 51874001
B58: 8563 | C58: Doc. MUDr. Jan Minařík, Ph.D. - HOK | D58: 0 | E58: 0 | F58: 0 | G58: 0 | H58: 0 | I58: 0 | J58: 0 | K58: 0 | L58: 0 | M58: 0 | N58: 0 | O58: 0 | P58: 0 | S58: Orig | T58: 51874001
B59: 8565 | C59: Prof. MUDr. Ing. Petr Hluštík, Ph.D. - NEUROL | D59: 0 | E59: 0 | F59: 0 | G59: 0 | H59: 0 | I59: 0 | J59: 0 | K59: 0 | L59: 0 | M59: 0 | N59: 0 | O59: 0 | P59: 0 | S59: Orig | T59: 51874001
B60: 8709 | C60: RIV: MUDr. Aleš Grambal, PhD. | D60: 0 | E60: 0 | F60: 0 | G60: 0 | H60: 0 | I60: 0 | J60: 0 | K60: 0 | L60: 0 | M60: 0 | N60: 0 | O60: 0 | P60: 0 | S60: Orig | T60: 51874001
B61: 8710 | C61: RIV: MUDr. Štefan Trnka | D61: 0 | E61: 0 | F61: 0 | G61: 0 | H61: 0 | I61: 0 | J61: 0 | K61: 0 | L61: 0 | M61: 0 | N61: 0 | O61: 0 | P61: 0 | S61: Orig | T61: 51874001
B62: 8712 | C62: RIV: prof. MUDr. Jiří Gallo, PhD. | D62: 0 | E62: 0 | F62: 0 | G62: 0 | H62: 0 | I62: 0 | J62: 0 | K62: 0 | L62: 0 | M62: 0 | N62: 0 | O62: 0 | P62: 0 | S62: Orig | T62: 51874001
B63: 8715 | C63: RIV: MUDr. Karel Huml | D63: 0 | E63: 0 | F63: 0 | G63: 0 | H63: 0 | I63: 0 | J63: 0 | K63: 0 | L63: 0 | M63: 0 | N63: 0 | O63: 0 | P63: 0 | S63: Orig | T63: 51874001
B64: 8716 | C64: RIV: MUDr. Beáta Hutyrová, PhD. | D64: 0 | E64: 0 | F64: 0 | G64: 0 | H64: 0 | I64: 0 | J64: 0 | K64: 0 | L64: 0 | M64: 0 | N64: 0 | O64: 0 | P64: 0 | S64: Orig | T64: 51874001
B65: 8720 | C65: RIV: MUDr. Petr Kolář, PhD. | D65: 0 | E65: 0 | F65: 0 | G65: 0 | H65: 0 | I65: 0 | J65: 0 | K65: 0 | L65: 0 | M65: 0 | N65: 0 | O65: 0 | P65: 0 | S65: Orig | T65: 51874001
B66: 8721 | C66: RIV: MUDr. Andrea Smržová | D66: 0 | E66: 0 | F66: 0 | G66: 0 | H66: 0 | I66: 0 | J66: 0 | K66: 0 | L66: 0 | M66: 0 | N66: 0 | O66: 0 | P66: 0 | S66: Orig | T66: 51874001
B67: 8725 | C67: RIV: MUDr. Helena Urbánková | D67: 0 | E67: 0 | F67: 0 | G67: 0 | H67: 0 | I67: 0 | J67: 0 | K67: 0 | L67: 0 | M67: 0 | N67: 0 | O67: 0 | P67: 0 | S67: Orig | T67: 51874001
B68: 8753 | C68: RIV: MUDr. Richard Salzmann, Ph.D. | D68: 0 | E68: 0 | F68: 0 | G68: 0 | H68: 0 | I68: 0 | J68: 0 | K68: 0 | L68: 0 | M68: 0 | N68: 0 | O68: 0 | P68: 0 | S68: Orig | T68: 51874001
B69: 8755 | C69: RIV - MUDr. Roman Hájek, Ph. D. | D69: 0 | E69: 0 | F69: 0 | G69: 0 | H69: 0 | I69: 0 | J69: 0 | K69: 0 | L69: 0 | M69: 0 | N69: 0 | O69: 0 | P69: 0 | S69: Orig | T69: 51874001
B70: 8760 | C70: RIV: RNDr. Martin Novák, Ph.D. | D70: 0 | E70: 0 | F70: 0 | G70: 0 | H70: 0 | I70: 0 | J70: 0 | K70: 0 | L70: 0 | M70: 0 | N70: 0 | O70: 0 | P70: 0 | S70: Orig | T70: 51874001
B71: 8762 | C71: RIV - Doc. MUDr. David Karásek, Ph. D. | D71: 0 | E71: 0 | F71: 0 | G71: 0 | H71: 0 | I71: 0 | J71: 0 | K71: 0 | L71: 0 | M71: 0 | N71: 0 | O71: 0 | P71: 0 | S71: Orig | T71: 51874001
B72: 8767 | C72: RIV - Prof. MUDr. Jiří Gallo, Ph. D. | D72: 0 | E72: 0 | F72: 0 | G72: 0 | H72: 0 | I72: 0 | J72: 0 | K72: 0 | L72: 0 | M72: 0 | N72: 0 | O72: 0 | P72: 0 | S72: Orig | T72: 51874001
B73: 8768 | C73: RIV - Doc. MUDr. Karel Krejčí, Ph. D. | D73: 0 | E73: 0 | F73: 0 | G73: 0 | H73: 0 | I73: 0 | J73: 0 | K73: 0 | L73: 0 | M73: 0 | N73: 0 | O73: 0 | P73: 0 | S73: Orig | T73: 51874001
B74: 8773 | C74: RIV - MUDr. Jan Hálek, Ph.D. | D74: 0 | E74: 0 | F74: 0 | G74: 0 | H74: 0 | I74: 0 | J74: 0 | K74: 0 | L74: 0 | M74: 0 | N74: 0 | O74: 0 | P74: 0 | S74: Orig | T74: 51874001
B75: 8780 | C75: RIV - MUDr. Eva Karásková | D75: 0 | E75: 0 | F75: 0 | G75: 0 | H75: 0 | I75: 0 | J75: 0 | K75: 0 | L75: 0 | M75: 0 | N75: 0 | O75: 0 | P75: 0 | S75: Orig | T75: 51874001
B76: 8781 | C76: RIV - Doc. MUDr. Jiří Minařík, Ph. D. | D76: 0 | E76: 0 | F76: 0 | G76: 0 | H76: 0 | I76: 0 | J76: 0 | K76: 0 | L76: 0 | M76: 0 | N76: 0 | O76: 0 | P76: 0 | S76: Orig | T76: 51874001
B77: 8782 | C77: RIV - RNDr. Pavlína Čapková, Ph. D. | D77: 0 | E77: 0 | F77: 0 | G77: 0 | H77: 0 | I77: 0 | J77: 0 | K77: 0 | L77: 0 | M77: 0 | N77: 0 | O77: 0 | P77: 0 | S77: Orig | T77: 51874001
B78: 8783 | C78: RIV - MUDr. Eva Klásková, Ph. D. | D78: 0 | E78: 0 | F78: 0 | G78: 0 | H78: 0 | I78: 0 | J78: 0 | K78: 0 | L78: 0 | M78: 0 | N78: 0 | O78: 0 | P78: 0 | S78: Orig | T78: 51874001
B79: 8785 | C79: RIV - Doc. MUDr. Martin Hutyra, Ph. D. | D79: 0 | E79: 0 | F79: 0 | G79: 0 | H79: 0 | I79: 0 | J79: 0 | K79: 0 | L79: 0 | M79: 0 | N79: 0 | O79: 0 | P79: 0 | S79: Orig | T79: 51874001
B80: 8786 | C80: RIV - MUDr. Pavel Hok | D80: 0 | E80: 0 | F80: 0 | G80: 0 | H80: 0 | I80: 0 | J80: 0 | K80: 0 | L80: 0 | M80: 0 | N80: 0 | O80: 0 | P80: 0 | S80: Orig | T80: 51874001
B81: 8787 | C81: RIV - Dr. Gvansta Kharaishvili, Ph. D. | D81: 0 | E81: 0 | F81: 0 | G81: 0 | H81: 0 | I81: 0 | J81: 0 | K81: 0 | L81: 0 | M81: 0 | N81: 0 | O81: 0 | P81: 0 | S81: Orig | T81: 51874001
B82: 8791 | C82: RIV - Doc. Mgr. Luděk Slavík, Ph. D. - MEX | D82: 0 | E82: 0 | F82: 0 | G82: 0 | H82: 0 | I82: 0 | J82: 0 | K82: 0 | L82: 0 | M82: 0 | N82: 0 | O82: 0 | P82: 0 | S82: Orig | T82: 51874001
B83: 8792 | C83: RIV - Prof. MUDr. Jiří Gallo, Ph. D. - MEX | D83: 0 | E83: 0 | F83: 0 | G83: 0 | H83: 0 | I83: 0 | J83: 0 | K83: 0 | L83: 0 | M83: 0 | N83: 0 | O83: 0 | P83: 0 | S83: Orig | T83: 51874001
B84: 8794 | C84: RIV: MUDr. Martin Loveček, PhD. - MEX | D84: 146750 | E84: 146750 | F84: 146750 | G84: 146750 | H84: 146750 | I84: 146750 | J84: 146750 | K84: 146750 | L84: 146750 | M84: 146750 | N84: 146750 | O84: 146750 | P84: =SUM(D84:O84) -> 1761000 | S84: Orig | T84: 51874001
B85: 9001 | C85: Úsek ředitele | D85: 0 | E85: 0 | F85: 0 | G85: 0 | H85: 0 | I85: 0 | J85: 0 | K85: 0 | L85: 0 | M85: 0 | N85: 0 | O85: 0 | P85: =SUM(D85:O85) -> 0 | S85: Orig | T85: 51874001
B86: 9010 | C86: Organizace plesu FN | D86: 0 | E86: 0 | F86: 0 | G86: 0 | H86: 0 | I86: 0 | J86: 0 | K86: 0 | L86: 0 | M86: 0 | N86: 0 | O86: 0 | P86: 0 | S86: Orig | T86: 51874001
B87: 9028 | C87: Oddělení vědy a výzkumu | D87: 0 | E87: 0 | F87: 0 | G87: 0 | H87: 0 | I87: 0 | J87: 0 | K87: 0 | L87: 0 | M87: 0 | N87: 0 | O87: 0 | P87: 0 | S87: Orig | T87: 51874001
B88: 9041 | C88: Útvar ekonomiky a zdravotních pojišťoven | D88: 0 | E88: 0 | F88: 0 | G88: 0 | H88: 0 | I88: 0 | J88: 0 | K88: 0 | L88: 0 | M88: 0 | N88: 0 | O88: 0 | P88: 0 | S88: Orig | T88: 51874001
B89: 9051 | C89: Útvar hospodářsko technické správy | D89: 524166.6667 | E89: 524166.6667 | F89: 524166.6667 | G89: 524166.6667 | H89: 524166.6667 | I89: 524166.6667 | J89: 524166.6667 | K89: 524166.6667 | L89: 524166.6667 | M89: 524166.6667 | N89: 524166.6667 | O89: 524166.6667 | P89: =SUM(D89:O89) -> 6290000 | S89: Orig | T89: 51874001
B90: 9081 | C90: Úsek informačních technologií | D90: 0 | E90: 0 | F90: 0 | G90: 0 | H90: 0 | I90: 0 | J90: 0 | K90: 0 | L90: 0 | M90: 0 | N90: 0 | O90: 0 | P90: 0 | S90: Orig | T90: 51874001
B91: 9084 | C91: Oddělení centrální spisovny | D91: 0 | E91: 0 | F91: 0 | G91: 0 | H91: 0 | I91: 0 | J91: 0 | K91: 0 | L91: 0 | M91: 0 | N91: 0 | O91: 0 | P91: 0 | S91: Orig | T91: 51874001
B92: 9091 | C92: Obchodní úsek | D92: 0 | E92: 0 | F92: 0 | G92: 0 | H92: 0 | I92: 0 | J92: 0 | K92: 0 | L92: 0 | M92: 0 | N92: 0 | O92: 0 | P92: 0 | S92: Orig | T92: 51874001
B93: 9096 | C93: Odbor marketingu | D93: 0 | E93: 0 | F93: 0 | G93: 0 | H93: 0 | I93: 0 | J93: 0 | K93: 0 | L93: 0 | M93: 0 | N93: 0 | O93: 0 | P93: 0 | S93: Orig | T93: 51874001
B94: 9204 | C94: Areál FNOL | D94: 0 | E94: 0 | F94: 0 | G94: 0 | H94: 0 | I94: 0 | J94: 0 | K94: 0 | L94: 0 | M94: 0 | N94: 0 | O94: 0 | P94: 0 | S94: Orig | T94: 51874001
B95: 9209 | C95: Areál - ulice Profesora Fuky | D95: 0 | E95: 0 | F95: 0 | G95: 0 | H95: 0 | I95: 0 | J95: 0 | K95: 0 | L95: 0 | M95: 0 | N95: 0 | O95: 0 | P95: 0 | S95: Orig | T95: 51874001
B96: 9405 | C96: Provoz dopravy - sanitní - převoz zdrav. pojišťovny | D96: 0 | E96: 0 | F96: 0 | G96: 0 | H96: 0 | I96: 0 | J96: 0 | K96: 0 | L96: 0 | M96: 0 | N96: 0 | O96: 0 | P96: 0 | S96: Orig | T96: 51874001
B97: 9819 | C97: TranMZČR: Bezpečnost a kvalita zdravotní péče | D97: 0 | E97: 0 | F97: 0 | G97: 0 | H97: 0 | I97: 0 | J97: 0 | K97: 0 | L97: 0 | M97: 0 | N97: 0 | O97: 0 | P97: 0 | S97: Orig | T97: 51874001
B98: 8599 | C98: =IFERROR(VLOOKUP(B98,CisNS!$A:$B,2,FALSE),"") -> Granty - pomocné středisko | D98: 50000 | E98: 50000 | F98: 50000 | G98: 50000 | H98: 50000 | I98: 50000 | J98: 50000 | K98: 50000 | L98: 50000 | M98: 50000 | N98: 50000 | O98: 50000 | P98: =SUM(D98:O98) -> 600000 | Q98: =IF(AND(ROUND(P98,0)<>0,B98=""),"Obrat bez specifikace NS","") ->  | T98: 51874001
B99: 8988 | C99: =IFERROR(VLOOKUP(B99,CisNS!$A:$B,2,FALSE),"") -> Pomocné středisko | D99: 150000 | E99: 150000 | F99: 150000 | G99: 150000 | H99: 150000 | I99: 150000 | J99: 150000 | K99: 150000 | L99: 150000 | M99: 150000 | N99: 150000 | O99: 150000 | P99: =SUM(D99:O99) -> 1800000 | Q99: =IF(AND(ROUND(P99,0)<>0,B99=""),"Obrat bez specifikace NS","") ->  | T99: 51874001
C100: =IFERROR(VLOOKUP(B100,CisNS!$A:$B,2,FALSE),"") ->  | P100: 0 | T100: =T35 -> 51874001 | U100: End

Sheet 3_Rozdíly (hidden)
A1: Legenda | C1: Hodnoty v CZK
A2: Účet | B2: Název účtu
B3: NS | C3: Název NS | D3: 202001 | E3: 202002 | F3: 202003 | G3: 202004 | H3: 202005 | I3: 202006 | J3: 202007 | K3: 202008 | L3: 202009 | M3: 202010 | N3: 202011 | O3: 202012 | P3: 2020 celkem
A5: 51805001 | B5: Průzkumné a projektové práce | D5: =SUM(D32:D32) -> 0 | E5: 0 | F5: 0 | G5: 0 | H5: 0 | I5: 0 | J5: 0 | K5: 0 | L5: 0 | M5: 0 | N5: 0 | O5: 0 | P5: 0
B6: =IF('2_Upravený'!B6="","",'2_Upravený'!B6) -> 0111 | C6: =IF('2_Upravený'!C6="","",'2_Upravený'!C6) -> Lůžkové oddělení 1 | D6: ='2_Upravený'!D6-'1_Původní'!D6 -> -6767.0252 | E6: ='2_Upravený'!E6-'1_Původní'!E6 -> 0 | F6: ='2_Upravený'!F6-'1_Původní'!F6 -> 0 | G6: ='2_Upravený'!G6-'1_Původní'!G6 -> 0 | H6: ='2_Upravený'!H6-'1_Původní'!H6 -> 0 | I6: ='2_Upravený'!I6-'1_Původní'!I6 -> 0 | J6: ='2_Upravený'!J6-'1_Původní'!J6 -> 0 | K6: ='2_Upravený'!K6-'1_Původní'!K6 -> 0 | L6: ='2_Upravený'!L6-'1_Původní'!L6 -> 0 | M6: ='2_Upravený'!M6-'1_Původní'!M6 -> 0 | N6: ='2_Upravený'!N6-'1_Původní'!N6 -> 0 | O6: ='2_Upravený'!O6-'1_Původní'!O6 -> 0 | P6: =SUM(D6:O6) -> -6767.0252
B7: =IF('2_Upravený'!B7="","",'2_Upravený'!B7) -> 0301 | C7: =IF('2_Upravený'!C7="","",'2_Upravený'!C7) -> Vedení klinického pracoviště | D7: ='2_Upravený'!D7-'1_Původní'!D7 -> 0 | E7: ='2_Upravený'!E7-'1_Původní'!E7 -> 0 | F7: ='2_Upravený'!F7-'1_Původní'!F7 -> 0 | G7: ='2_Upravený'!G7-'1_Původní'!G7 -> 0 | H7: ='2_Upravený'!H7-'1_Původní'!H7 -> 0 | I7: ='2_Upravený'!I7-'1_Původní'!I7 -> -277.7925 | J7: ='2_Upravený'!J7-'1_Původní'!J7 -> 0 | K7: ='2_Upravený'!K7-'1_Původní'!K7 -> 0 | L7: ='2_Upravený'!L7-'1_Původní'!L7 -> 0 | M7: ='2_Upravený'!M7-'1_Původní'!M7 -> 0 | N7: ='2_Upravený'!N7-'1_Původní'!N7 -> 0 | O7: ='2_Upravený'!O7-'1_Původní'!O7 -> 0 | P7: =SUM(D7:O7) -> -277.7925
B8: =IF('2_Upravený'!B8="","",'2_Upravený'!B8) -> 0811 | C8: =IF('2_Upravený'!C8="","",'2_Upravený'!C8) -> Lůžkové oddělení 19B (šestinedělí) | D8: ='2_Upravený'!D8-'1_Původní'!D8 -> 0 | E8: ='2_Upravený'!E8-'1_Původní'!E8 -> 0 | F8: ='2_Upravený'!F8-'1_Původní'!F8 -> 0 | G8: ='2_Upravený'!G8-'1_Původní'!G8 -> -23417.2187 | H8: ='2_Upravený'!H8-'1_Původní'!H8 -> 0 | I8: ='2_Upravený'!I8-'1_Původní'!I8 -> 0 | J8: ='2_Upravený'!J8-'1_Původní'!J8 -> 0 | K8: ='2_Upravený'!K8-'1_Původní'!K8 -> 0 | L8: ='2_Upravený'!L8-'1_Původní'!L8 -> 0 | M8: ='2_Upravený'!M8-'1_Původní'!M8 -> 0 | N8: ='2_Upravený'!N8-'1_Původní'!N8 -> 0 | O8: ='2_Upravený'!O8-'1_Původní'!O8 -> 0 | P8: -23417.2187
B9: =IF('2_Upravený'!B9="","",'2_Upravený'!B9) -> 0832 | C9: =IF('2_Upravený'!C9="","",'2_Upravený'!C9) -> JIP 19 (porodní sál) | D9: ='2_Upravený'!D9-'1_Původní'!D9 -> -6250.3312 | E9: ='2_Upravený'!E9-'1_Původní'!E9 -> 0 | F9: ='2_Upravený'!F9-'1_Původní'!F9 -> 0 | G9: ='2_Upravený'!G9-'1_Původní'!G9 -> 0 | H9: ='2_Upravený'!H9-'1_Původní'!H9 -> 0 | I9: ='2_Upravený'!I9-'1_Původní'!I9 -> 0 | J9: ='2_Upravený'!J9-'1_Původní'!J9 -> 0 | K9: ='2_Upravený'!K9-'1_Původní'!K9 -> 0 | L9: ='2_Upravený'!L9-'1_Původní'!L9 -> 0 | M9: ='2_Upravený'!M9-'1_Původní'!M9 -> 0 | N9: ='2_Upravený'!N9-'1_Původní'!N9 -> 0 | O9: ='2_Upravený'!O9-'1_Původní'!O9 -> 0 | P9: -6250.3312
B10: =IF('2_Upravený'!B10="","",'2_Upravený'!B10) -> 0862 | C10: =IF('2_Upravený'!C10="","",'2_Upravený'!C10) -> Porodní sál - lokální | D10: ='2_Upravený'!D10-'1_Původní'!D10 -> 0 | E10: ='2_Upravený'!E10-'1_Původní'!E10 -> 0 | F10: ='2_Upravený'!F10-'1_Původní'!F10 -> 0 | G10: ='2_Upravený'!G10-'1_Původní'!G10 -> 0 | H10: ='2_Upravený'!H10-'1_Původní'!H10 -> 0 | I10: ='2_Upravený'!I10-'1_Původní'!I10 -> 0 | J10: ='2_Upravený'!J10-'1_Původní'!J10 -> 0 | K10: ='2_Upravený'!K10-'1_Původní'!K10 -> 0 | L10: ='2_Upravený'!L10-'1_Původní'!L10 -> 0 | M10: ='2_Upravený'!M10-'1_Původní'!M10 -> 0 | N10: ='2_Upravený'!N10-'1_Původní'!N10 -> 0 | O10: ='2_Upravený'!O10-'1_Původní'!O10 -> -11938.1899 | P10: -11938.1899
B11: =IF('2_Upravený'!B11="","",'2_Upravený'!B11) -> 0863 | C11: =IF('2_Upravený'!C11="","",'2_Upravený'!C11) -> Operační sál OP 17 (z 08 62) | D11: ='2_Upravený'!D11-'1_Původní'!D11 -> -2222.34 | E11: ='2_Upravený'!E11-'1_Původní'!E11 -> 0 | F11: ='2_Upravený'!F11-'1_Původní'!F11 -> 0 | G11: ='2_Upravený'!G11-'1_Původní'!G11 -> 0 | H11: ='2_Upravený'!H11-'1_Původní'!H11 -> 0 | I11: ='2_Upravený'!I11-'1_Původní'!I11 -> 0 | J11: ='2_Upravený'!J11-'1_Původní'!J11 -> 0 | K11: ='2_Upravený'!K11-'1_Původní'!K11 -> 0 | L11: ='2_Upravený'!L11-'1_Původní'!L11 -> 0 | M11: ='2_Upravený'!M11-'1_Původní'!M11 -> 0 | N11: ='2_Upravený'!N11-'1_Původní'!N11 -> 0 | O11: ='2_Upravený'!O11-'1_Původní'!O11 -> 0 | P11: -2222.34
B12: =IF('2_Upravený'!B12="","",'2_Upravený'!B12) -> 0931 | C12: =IF('2_Upravený'!C12="","",'2_Upravený'!C12) -> JIP 16A +16D | D12: ='2_Upravený'!D12-'1_Původní'!D12 -> 0 | E12: ='2_Upravený'!E12-'1_Původní'!E12 -> 0 | F12: ='2_Upravený'!F12-'1_Původní'!F12 -> 0 | G12: ='2_Upravený'!G12-'1_Původní'!G12 -> 0 | H12: ='2_Upravený'!H12-'1_Původní'!H12 -> -10444.9979 | I12: ='2_Upravený'!I12-'1_Původní'!I12 -> 0 | J12: ='2_Upravený'!J12-'1_Původní'!J12 -> 0 | K12: ='2_Upravený'!K12-'1_Původní'!K12 -> 0 | L12: ='2_Upravený'!L12-'1_Původní'!L12 -> 0 | M12: ='2_Upravený'!M12-'1_Původní'!M12 -> 0 | N12: ='2_Upravený'!N12-'1_Původní'!N12 -> 0 | O12: ='2_Upravený'!O12-'1_Původní'!O12 -> 0 | P12: -10444.9979
B13: =IF('2_Upravený'!B13="","",'2_Upravený'!B13) -> 1001 | C13: =IF('2_Upravený'!C13="","",'2_Upravený'!C13) -> Vedení klinického pracoviště | D13: ='2_Upravený'!D13-'1_Původní'!D13 -> 0 | E13: ='2_Upravený'!E13-'1_Původní'!E13 -> 0 | F13: ='2_Upravený'!F13-'1_Původní'!F13 -> 0 | G13: ='2_Upravený'!G13-'1_Původní'!G13 -> 0 | H13: ='2_Upravený'!H13-'1_Původní'!H13 -> 0 | I13: ='2_Upravený'!I13-'1_Původní'!I13 -> -277.7925 | J13: ='2_Upravený'!J13-'1_Původní'!J13 -> 0 | K13: ='2_Upravený'!K13-'1_Původní'!K13 -> 0 | L13: ='2_Upravený'!L13-'1_Původní'!L13 -> 0 | M13: ='2_Upravený'!M13-'1_Původní'!M13 -> 0 | N13: ='2_Upravený'!N13-'1_Původní'!N13 -> 0 | O13: ='2_Upravený'!O13-'1_Původní'!O13 -> 0 | P13: -277.7925
B14: =IF('2_Upravený'!B14="","",'2_Upravený'!B14) -> 1012 | C14: =IF('2_Upravený'!C14="","",'2_Upravený'!C14) -> Lůžkové oddělení 28C vč.dospávací haly | D14: ='2_Upravený'!D14-'1_Původní'!D14 -> 0 | E14: ='2_Upravený'!E14-'1_Původní'!E14 -> 0 | F14: ='2_Upravený'!F14-'1_Původní'!F14 -> 0 | G14: ='2_Upravený'!G14-'1_Původní'!G14 -> 0 | H14: ='2_Upravený'!H14-'1_Původní'!H14 -> -7778.1899 | I14: ='2_Upravený'!I14-'1_Původní'!I14 -> 0 | J14: ='2_Upravený'!J14-'1_Původní'!J14 -> 0 | K14: ='2_Upravený'!K14-'1_Původní'!K14 -> 0 | L14: ='2_Upravený'!L14-'1_Původní'!L14 -> 0 | M14: ='2_Upravený'!M14-'1_Původní'!M14 -> 0 | N14: ='2_Upravený'!N14-'1_Původní'!N14 -> 0 | O14: ='2_Upravený'!O14-'1_Původní'!O14 -> 0 | P14: -7778.1899
B15: =IF('2_Upravený'!B15="","",'2_Upravený'!B15) -> 1121 | C15: =IF('2_Upravený'!C15="","",'2_Upravený'!C15) -> Ambulance | D15: ='2_Upravený'!D15-'1_Původní'!D15 -> 0 | E15: ='2_Upravený'!E15-'1_Původní'!E15 -> 0 | F15: ='2_Upravený'!F15-'1_Původní'!F15 -> 0 | G15: ='2_Upravený'!G15-'1_Původní'!G15 -> 0 | H15: ='2_Upravený'!H15-'1_Původní'!H15 -> 0 | I15: ='2_Upravený'!I15-'1_Původní'!I15 -> 0 | J15: ='2_Upravený'!J15-'1_Původní'!J15 -> 0 | K15: ='2_Upravený'!K15-'1_Původní'!K15 -> -10833.9074 | L15: ='2_Upravený'!L15-'1_Původní'!L15 -> 0 | M15: ='2_Upravený'!M15-'1_Původní'!M15 -> 0 | N15: ='2_Upravený'!N15-'1_Původní'!N15 -> 0 | O15: ='2_Upravený'!O15-'1_Původní'!O15 -> 0 | P15: -10833.9074
B16: =IF('2_Upravený'!B16="","",'2_Upravený'!B16) -> 1162 | C16: =IF('2_Upravený'!C16="","",'2_Upravený'!C16) -> Operační sál - lokální | D16: ='2_Upravený'!D16-'1_Původní'!D16 -> 0 | E16: ='2_Upravený'!E16-'1_Původní'!E16 -> 0 | F16: ='2_Upravený'!F16-'1_Původní'!F16 -> 0 | G16: ='2_Upravený'!G16-'1_Původní'!G16 -> 0 | H16: ='2_Upravený'!H16-'1_Původní'!H16 -> 0 | I16: ='2_Upravený'!I16-'1_Původní'!I16 -> 0 | J16: ='2_Upravený'!J16-'1_Původní'!J16 -> 0 | K16: ='2_Upravený'!K16-'1_Původní'!K16 -> -10000.5299 | L16: ='2_Upravený'!L16-'1_Původní'!L16 -> 0 | M16: ='2_Upravený'!M16-'1_Původní'!M16 -> 0 | N16: ='2_Upravený'!N16-'1_Původní'!N16 -> 0 | O16: ='2_Upravený'!O16-'1_Původní'!O16 -> 0 | P16: -10000.5299
B17: =IF('2_Upravený'!B17="","",'2_Upravený'!B17) -> 1211 | C17: =IF('2_Upravený'!C17="","",'2_Upravený'!C17) -> Lůžkové oddělení | D17: ='2_Upravený'!D17-'1_Původní'!D17 -> 0 | E17: ='2_Upravený'!E17-'1_Původní'!E17 -> 0 | F17: ='2_Upravený'!F17-'1_Původní'!F17 -> 0 | G17: ='2_Upravený'!G17-'1_Původní'!G17 -> 0 | H17: ='2_Upravený'!H17-'1_Původní'!H17 -> -534.0044 | I17: ='2_Upravený'!I17-'1_Původní'!I17 -> 0 | J17: ='2_Upravený'!J17-'1_Původní'!J17 -> 0 | K17: ='2_Upravený'!K17-'1_Původní'!K17 -> 0 | L17: ='2_Upravený'!L17-'1_Původní'!L17 -> 0 | M17: ='2_Upravený'!M17-'1_Původní'!M17 -> 0 | N17: ='2_Upravený'!N17-'1_Původní'!N17 -> 0 | O17: ='2_Upravený'!O17-'1_Původní'!O17 -> 0 | P17: -534.0044
B18: =IF('2_Upravený'!B18="","",'2_Upravený'!B18) -> 1321 | C18: =IF('2_Upravený'!C18="","",'2_Upravený'!C18) -> Ambulance | D18: ='2_Upravený'!D18-'1_Původní'!D18 -> 0 | E18: ='2_Upravený'!E18-'1_Původní'!E18 -> 0 | F18: ='2_Upravený'!F18-'1_Původní'!F18 -> 0 | G18: ='2_Upravený'!G18-'1_Původní'!G18 -> 0 | H18: ='2_Upravený'!H18-'1_Původní'!H18 -> 0 | I18: ='2_Upravený'!I18-'1_Původní'!I18 -> 0 | J18: ='2_Upravený'!J18-'1_Původní'!J18 -> 0 | K18: ='2_Upravený'!K18-'1_Původní'!K18 -> -9028.2561 | L18: ='2_Upravený'!L18-'1_Původní'!L18 -> 0 | M18: ='2_Upravený'!M18-'1_Původní'!M18 -> 0 | N18: ='2_Upravený'!N18-'1_Původní'!N18 -> 0 | O18: ='2_Upravený'!O18-'1_Původní'!O18 -> 0 | P18: -9028.2561
B19: =IF('2_Upravený'!B19="","",'2_Upravený'!B19) -> 1462 | C19: =IF('2_Upravený'!C19="","",'2_Upravený'!C19) -> Operační sál - lokální | D19: ='2_Upravený'!D19-'1_Původní'!D19 -> -6944.8124 | E19: ='2_Upravený'!E19-'1_Původní'!E19 -> 0 | F19: ='2_Upravený'!F19-'1_Původní'!F19 -> 0 | G19: ='2_Upravený'!G19-'1_Původní'!G19 -> 0 | H19: ='2_Upravený'!H19-'1_Původní'!H19 -> 0 | I19: ='2_Upravený'!I19-'1_Původní'!I19 -> 0 | J19: ='2_Upravený'!J19-'1_Původní'!J19 -> 0 | K19: ='2_Upravený'!K19-'1_Původní'!K19 -> 0 | L19: ='2_Upravený'!L19-'1_Původní'!L19 -> 0 | M19: ='2_Upravený'!M19-'1_Původní'!M19 -> 0 | N19: ='2_Upravený'!N19-'1_Původní'!N19 -> 0 | O19: ='2_Upravený'!O19-'1_Původní'!O19 -> 0 | P19: -6944.8124
B20: =IF('2_Upravený'!B20="","",'2_Upravený'!B20) -> 1721 | C20: =IF('2_Upravený'!C20="","",'2_Upravený'!C20) -> Ambulance | D20: ='2_Upravený'!D20-'1_Původní'!D20 -> -9056.0354 | E20: ='2_Upravený'!E20-'1_Původní'!E20 -> 0 | F20: ='2_Upravený'!F20-'1_Původní'!F20 -> 0 | G20: ='2_Upravený'!G20-'1_Původní'!G20 -> 0 | H20: ='2_Upravený'!H20-'1_Původní'!H20 -> 0 | I20: ='2_Upravený'!I20-'1_Původní'!I20 -> 0 | J20: ='2_Upravený'!J20-'1_Původní'!J20 -> 0 | K20: ='2_Upravený'!K20-'1_Původní'!K20 -> 0 | L20: ='2_Upravený'!L20-'1_Původní'!L20 -> 0 | M20: ='2_Upravený'!M20-'1_Původní'!M20 -> 0 | N20: ='2_Upravený'!N20-'1_Původní'!N20 -> 0 | O20: ='2_Upravený'!O20-'1_Původní'!O20 -> 0 | P20: -9056.0354
B21: =IF('2_Upravený'!B21="","",'2_Upravený'!B21) -> 1801 | C21: =IF('2_Upravený'!C21="","",'2_Upravený'!C21) -> Vedení klinického pracoviště | D21: ='2_Upravený'!D21-'1_Původní'!D21 -> 0 | E21: ='2_Upravený'!E21-'1_Původní'!E21 -> 0 | F21: ='2_Upravený'!F21-'1_Původní'!F21 -> 0 | G21: ='2_Upravený'!G21-'1_Původní'!G21 -> 0 | H21: ='2_Upravený'!H21-'1_Původní'!H21 -> 0 | I21: ='2_Upravený'!I21-'1_Původní'!I21 -> 0 | J21: ='2_Upravený'!J21-'1_Původní'!J21 -> 0 | K21: ='2_Upravený'!K21-'1_Původní'!K21 -> 0 | L21: ='2_Upravený'!L21-'1_Původní'!L21 -> 0 | M21: ='2_Upravený'!M21-'1_Původní'!M21 -> -6944.8124 | N21: ='2_Upravený'!N21-'1_Původní'!N21 -> 0 | O21: ='2_Upravený'!O21-'1_Původní'!O21 -> 0 | P21: -6944.8124
B22: =IF('2_Upravený'!B22="","",'2_Upravený'!B22) -> 3341 | C22: =IF('2_Upravený'!C22="","",'2_Upravený'!C22) -> Centrální laboratoř | D22: ='2_Upravený'!D22-'1_Původní'!D22 -> 0 | E22: ='2_Upravený'!E22-'1_Původní'!E22 -> 0 | F22: ='2_Upravený'!F22-'1_Původní'!F22 -> 0 | G22: ='2_Upravený'!G22-'1_Původní'!G22 -> 0 | H22: ='2_Upravený'!H22-'1_Původní'!H22 -> 0 | I22: ='2_Upravený'!I22-'1_Původní'!I22 -> 0 | J22: ='2_Upravený'!J22-'1_Původní'!J22 -> 0 | K22: ='2_Upravený'!K22-'1_Původní'!K22 -> 0 | L22: ='2_Upravený'!L22-'1_Původní'!L22 -> -4000.2119 | M22: ='2_Upravený'!M22-'1_Původní'!M22 -> 0 | N22: ='2_Upravený'!N22-'1_Původní'!N22 -> 0 | O22: ='2_Upravený'!O22-'1_Původní'!O22 -> 0 | P22: -4000.2119
B23: =IF('2_Upravený'!B23="","",'2_Upravený'!B23) -> 3342 | C23: =IF('2_Upravený'!C23="","",'2_Upravený'!C23) -> Laboratoř DMP | D23: ='2_Upravený'!D23-'1_Původní'!D23 -> 0 | E23: ='2_Upravený'!E23-'1_Původní'!E23 -> 0 | F23: ='2_Upravený'!F23-'1_Původní'!F23 -> 0 | G23: ='2_Upravený'!G23-'1_Původní'!G23 -> 0 | H23: ='2_Upravený'!H23-'1_Původní'!H23 -> -2066.2252 | I23: ='2_Upravený'!I23-'1_Původní'!I23 -> 0 | J23: ='2_Upravený'!J23-'1_Původní'!J23 -> 0 | K23: ='2_Upravený'!K23-'1_Původní'!K23 -> 0 | L23: ='2_Upravený'!L23-'1_Původní'!L23 -> 0 | M23: ='2_Upravený'!M23-'1_Původní'!M23 -> 0 | N23: ='2_Upravený'!N23-'1_Původní'!N23 -> 0 | O23: ='2_Upravený'!O23-'1_Původní'!O23 -> 0 | P23: -2066.2252
B24: =IF('2_Upravený'!B24="","",'2_Upravený'!B24) -> 9001 | C24: =IF('2_Upravený'!C24="","",'2_Upravený'!C24) -> Úsek ředitele | D24: ='2_Upravený'!D24-'1_Původní'!D24 -> 0 | E24: ='2_Upravený'!E24-'1_Původní'!E24 -> 0 | F24: ='2_Upravený'!F24-'1_Původní'!F24 -> 0 | G24: ='2_Upravený'!G24-'1_Původní'!G24 -> 0 | H24: ='2_Upravený'!H24-'1_Původní'!H24 -> 0 | I24: ='2_Upravený'!I24-'1_Původní'!I24 -> 0 | J24: ='2_Upravený'!J24-'1_Původní'!J24 -> -5055.8234 | K24: ='2_Upravený'!K24-'1_Původní'!K24 -> 0 | L24: ='2_Upravený'!L24-'1_Původní'!L24 -> 0 | M24: ='2_Upravený'!M24-'1_Původní'!M24 -> 0 | N24: ='2_Upravený'!N24-'1_Původní'!N24 -> 0 | O24: ='2_Upravený'!O24-'1_Původní'!O24 -> 0 | P24: -5055.8234
B25: =IF('2_Upravený'!B25="","",'2_Upravený'!B25) -> 9041 | C25: =IF('2_Upravený'!C25="","",'2_Upravený'!C25) -> Útvar ekonomiky a zdravotních pojišťoven | D25: ='2_Upravený'!D25-'1_Původní'!D25 -> 0 | E25: ='2_Upravený'!E25-'1_Původní'!E25 -> 0 | F25: ='2_Upravený'!F25-'1_Původní'!F25 -> 0 | G25: ='2_Upravený'!G25-'1_Původní'!G25 -> 0 | H25: ='2_Upravený'!H25-'1_Původní'!H25 -> 0 | I25: ='2_Upravený'!I25-'1_Původní'!I25 -> 0 | J25: ='2_Upravený'!J25-'1_Původní'!J25 -> -5055.8234 | K25: ='2_Upravený'!K25-'1_Původní'!K25 -> 0 | L25: ='2_Upravený'!L25-'1_Původní'!L25 -> 0 | M25: ='2_Upravený'!M25-'1_Původní'!M25 -> 0 | N25: ='2_Upravený'!N25-'1_Původní'!N25 -> 0 | O25: ='2_Upravený'!O25-'1_Původní'!O25 -> 0 | P25: -5055.8234
B26: =IF('2_Upravený'!B26="","",'2_Upravený'!B26) -> 9051 | C26: =IF('2_Upravený'!C26="","",'2_Upravený'!C26) -> Útvar hospodářsko technické správy | D26: ='2_Upravený'!D26-'1_Původní'!D26 -> 40055.47017 | E26: ='2_Upravený'!E26-'1_Původní'!E26 -> 41666.66667 | F26: ='2_Upravený'!F26-'1_Původní'!F26 -> 41666.66667 | G26: ='2_Upravený'!G26-'1_Původní'!G26 -> 41666.66667 | H26: ='2_Upravený'!H26-'1_Původní'!H26 -> 41666.66667 | I26: ='2_Upravený'!I26-'1_Původní'!I26 -> 41666.66667 | J26: ='2_Upravený'!J26-'1_Původní'!J26 -> 41666.66667 | K26: ='2_Upravený'!K26-'1_Původní'!K26 -> 41666.66667 | L26: ='2_Upravený'!L26-'1_Původní'!L26 -> 41666.66667 | M26: ='2_Upravený'!M26-'1_Původní'!M26 -> 41666.66667 | N26: ='2_Upravený'!N26-'1_Původní'!N26 -> 41666.66667 | O26: ='2_Upravený'!O26-'1_Původní'!O26 -> 41666.66667 | P26: 498388.8035
B27: =IF('2_Upravený'!B27="","",'2_Upravený'!B27) -> 9204 | C27: =IF('2_Upravený'!C27="","",'2_Upravený'!C27) -> Areál FNOL | D27: ='2_Upravený'!D27-'1_Původní'!D27 -> -13170.3489 | E27: ='2_Upravený'!E27-'1_Původní'!E27 -> -9722.7374 | F27: ='2_Upravený'!F27-'1_Původní'!F27 -> 0 | G27: ='2_Upravený'!G27-'1_Původní'!G27 -> -6657.8367 | H27: ='2_Upravený'!H27-'1_Původní'!H27 -> -11328.8831 | I27: ='2_Upravený'!I27-'1_Původní'!I27 -> -60769.9784 | J27: ='2_Upravený'!J27-'1_Původní'!J27 -> -21507.1083 | K27: ='2_Upravený'!K27-'1_Původní'!K27 -> -46621.6162 | L27: ='2_Upravený'!L27-'1_Původní'!L27 -> -9167.1524 | M27: ='2_Upravený'!M27-'1_Původní'!M27 -> -35315.232 | N27: ='2_Upravený'!N27-'1_Původní'!N27 -> -66802.8967 | O27: ='2_Upravený'!O27-'1_Původní'!O27 -> -47095.7001 | P27: -328159.4902
B28: =IF('2_Upravený'!B28="","",'2_Upravený'!B28) -> 9601 | C28: =IF('2_Upravený'!C28="","",'2_Upravený'!C28) -> Ubytovny | D28: ='2_Upravený'!D28-'1_Původní'!D28 -> 0 | E28: ='2_Upravený'!E28-'1_Původní'!E28 -> 0 | F28: ='2_Upravený'!F28-'1_Původní'!F28 -> 0 | G28: ='2_Upravený'!G28-'1_Původní'!G28 -> 0 | H28: ='2_Upravený'!H28-'1_Původní'!H28 -> -2055.6645 | I28: ='2_Upravený'!I28-'1_Původní'!I28 -> -10556.1149 | J28: ='2_Upravený'!J28-'1_Původní'!J28 -> 0 | K28: ='2_Upravený'!K28-'1_Původní'!K28 -> 0 | L28: ='2_Upravený'!L28-'1_Původní'!L28 -> 0 | M28: ='2_Upravený'!M28-'1_Původní'!M28 -> 0 | N28: ='2_Upravený'!N28-'1_Původní'!N28 -> 0 | O28: ='2_Upravený'!O28-'1_Původní'!O28 -> 0 | P28: -12611.7794
B29: =IF('2_Upravený'!B29="","",'2_Upravený'!B29) -> 9655 | C29: =IF('2_Upravený'!C29="","",'2_Upravený'!C29) -> Byty | D29: ='2_Upravený'!D29-'1_Původní'!D29 -> 0 | E29: ='2_Upravený'!E29-'1_Původní'!E29 -> 0 | F29: ='2_Upravený'!F29-'1_Původní'!F29 -> -5833.6424 | G29: ='2_Upravený'!G29-'1_Původní'!G29 -> 0 | H29: ='2_Upravený'!H29-'1_Původní'!H29 -> 0 | I29: ='2_Upravený'!I29-'1_Původní'!I29 -> 0 | J29: ='2_Upravený'!J29-'1_Původní'!J29 -> 0 | K29: ='2_Upravený'!K29-'1_Původní'!K29 -> 0 | L29: ='2_Upravený'!L29-'1_Původní'!L29 -> 0 | M29: ='2_Upravený'!M29-'1_Původní'!M29 -> -4833.5894 | N29: ='2_Upravený'!N29-'1_Původní'!N29 -> -1750.0927 | O29: ='2_Upravený'!O29-'1_Původní'!O29 -> 0 | P29: -12417.3245
B30: =IF('2_Upravený'!B30="","",'2_Upravený'!B30) -> 9901 | C30: =IF('2_Upravený'!C30="","",'2_Upravený'!C30) -> Pronájmy Areál FNO | D30: ='2_Upravený'!D30-'1_Původní'!D30 -> 0 | E30: ='2_Upravený'!E30-'1_Původní'!E30 -> 0 | F30: ='2_Upravený'!F30-'1_Původní'!F30 -> -1916.7682 | G30: ='2_Upravený'!G30-'1_Původní'!G30 -> 0 | H30: ='2_Upravený'!H30-'1_Původní'!H30 -> 0 | I30: ='2_Upravený'!I30-'1_Původní'!I30 -> 0 | J30: ='2_Upravený'!J30-'1_Původní'!J30 -> 0 | K30: ='2_Upravený'!K30-'1_Původní'!K30 -> 0 | L30: ='2_Upravený'!L30-'1_Původní'!L30 -> 0 | M30: ='2_Upravený'!M30-'1_Původní'!M30 -> 0 | N30: ='2_Upravený'!N30-'1_Původní'!N30 -> 0 | O30: ='2_Upravený'!O30-'1_Původní'!O30 -> 0 | P30: -1916.7682
B31: =IF('2_Upravený'!B31="","",'2_Upravený'!B31) -> 9910 | C31: =IF('2_Upravený'!C31="","",'2_Upravený'!C31) -> Pronájmy Areál Hněvotínská vč.kotelny | D31: ='2_Upravený'!D31-'1_Původní'!D31 -> -1111.17 | E31: ='2_Upravený'!E31-'1_Původní'!E31 -> 0 | F31: ='2_Upravený'!F31-'1_Původní'!F31 -> 0 | G31: ='2_Upravený'!G31-'1_Původní'!G31 -> 0 | H31: ='2_Upravený'!H31-'1_Původní'!H31 -> 0 | I31: ='2_Upravený'!I31-'1_Původní'!I31 -> 0 | J31: ='2_Upravený'!J31-'1_Původní'!J31 -> -3277.9515 | K31: ='2_Upravený'!K31-'1_Původní'!K31 -> 0 | L31: ='2_Upravený'!L31-'1_Původní'!L31 -> 0 | M31: ='2_Upravený'!M31-'1_Původní'!M31 -> 0 | N31: ='2_Upravený'!N31-'1_Původní'!N31 -> 0 | O31: ='2_Upravený'!O31-'1_Původní'!O31 -> 0 | P31: -4389.1215
B32: =IF('2_Upravený'!B32="","",'2_Upravený'!B32) ->  | C32: =IF('2_Upravený'!C32="","",'2_Upravený'!C32) ->  | D32: ='2_Upravený'!D32-'1_Původní'!D32 -> 0 | E32: ='2_Upravený'!E32-'1_Původní'!E32 -> 0 | F32: ='2_Upravený'!F32-'1_Původní'!F32 -> 0 | G32: ='2_Upravený'!G32-'1_Původní'!G32 -> 0 | H32: ='2_Upravený'!H32-'1_Původní'!H32 -> 0 | I32: ='2_Upravený'!I32-'1_Původní'!I32 -> 0 | J32: ='2_Upravený'!J32-'1_Původní'!J32 -> 0 | K32: ='2_Upravený'!K32-'1_Původní'!K32 -> 0 | L32: ='2_Upravený'!L32-'1_Původní'!L32 -> 0 | M32: ='2_Upravený'!M32-'1_Původní'!M32 -> 0 | N32: ='2_Upravený'!N32-'1_Původní'!N32 -> 0 | O32: ='2_Upravený'!O32-'1_Původní'!O32 -> 0 | P32: =SUM(D32:O32) -> 0
A34: 51874001 | B34: Ostatní služby - provozní | D34: =SUM(D100:D100) -> 0 | E34: 0 | F34: 0 | G34: 0 | H34: 0 | I34: 0 | J34: 0 | K34: 0 | L34: 0 | M34: 0 | N34: 0 | O34: 0 | P34: 0
B35: =IF('2_Upravený'!B35="","",'2_Upravený'!B35) -> 0101 | C35: =IF('2_Upravený'!C35="","",'2_Upravený'!C35) -> Vedení klinického pracoviště | D35: ='2_Upravený'!D35-'1_Původní'!D35 -> 0 | E35: ='2_Upravený'!E35-'1_Původní'!E35 -> 0 | F35: ='2_Upravený'!F35-'1_Původní'!F35 -> 0 | G35: ='2_Upravený'!G35-'1_Původní'!G35 -> 0 | H35: ='2_Upravený'!H35-'1_Původní'!H35 -> 0 | I35: ='2_Upravený'!I35-'1_Původní'!I35 -> 0 | J35: ='2_Upravený'!J35-'1_Původní'!J35 -> 0 | K35: ='2_Upravený'!K35-'1_Původní'!K35 -> 0 | L35: ='2_Upravený'!L35-'1_Původní'!L35 -> -743.6545 | M35: ='2_Upravený'!M35-'1_Původní'!M35 -> 0 | N35: ='2_Upravený'!N35-'1_Původní'!N35 -> 0 | O35: ='2_Upravený'!O35-'1_Původní'!O35 -> 0 | P35: =SUM(D35:O35) -> -743.6545
B36: =IF('2_Upravený'!B36="","",'2_Upravený'!B36) -> 0231 | C36: =IF('2_Upravený'!C36="","",'2_Upravený'!C36) -> JIP 30D | D36: ='2_Upravený'!D36-'1_Původní'!D36 -> 0 | E36: ='2_Upravený'!E36-'1_Původní'!E36 -> 0 | F36: ='2_Upravený'!F36-'1_Původní'!F36 -> 0 | G36: ='2_Upravený'!G36-'1_Původní'!G36 -> 0 | H36: ='2_Upravený'!H36-'1_Původní'!H36 -> 0 | I36: ='2_Upravený'!I36-'1_Původní'!I36 -> 0 | J36: ='2_Upravený'!J36-'1_Původní'!J36 -> 0 | K36: ='2_Upravený'!K36-'1_Původní'!K36 -> 0 | L36: ='2_Upravený'!L36-'1_Původní'!L36 -> -11877.6497 | M36: ='2_Upravený'!M36-'1_Původní'!M36 -> 0 | N36: ='2_Upravený'!N36-'1_Původní'!N36 -> 0 | O36: ='2_Upravený'!O36-'1_Původní'!O36 -> 0 | P36: =SUM(D36:O36) -> -11877.6497
B37: =IF('2_Upravený'!B37="","",'2_Upravený'!B37) -> 0321 | C37: =IF('2_Upravený'!C37="","",'2_Upravený'!C37) -> Ambulance | D37: ='2_Upravený'!D37-'1_Původní'!D37 -> 0 | E37: ='2_Upravený'!E37-'1_Původní'!E37 -> 0 | F37: ='2_Upravený'!F37-'1_Původní'!F37 -> 0 | G37: ='2_Upravený'!G37-'1_Původní'!G37 -> 0 | H37: ='2_Upravený'!H37-'1_Původní'!H37 -> 0 | I37: ='2_Upravený'!I37-'1_Původní'!I37 -> 0 | J37: ='2_Upravený'!J37-'1_Původní'!J37 -> 0 | K37: ='2_Upravený'!K37-'1_Původní'!K37 -> 0 | L37: ='2_Upravený'!L37-'1_Původní'!L37 -> 0 | M37: ='2_Upravený'!M37-'1_Původní'!M37 -> 0 | N37: ='2_Upravený'!N37-'1_Původní'!N37 -> -980.1366 | O37: ='2_Upravený'!O37-'1_Původní'!O37 -> 0 | P37: -980.1366
B38: =IF('2_Upravený'!B38="","",'2_Upravený'!B38) -> 0801 | C38: =IF('2_Upravený'!C38="","",'2_Upravený'!C38) -> Vedení klinického pracoviště | D38: ='2_Upravený'!D38-'1_Původní'!D38 -> -4957.6967 | E38: ='2_Upravený'!E38-'1_Původní'!E38 -> 0 | F38: ='2_Upravený'!F38-'1_Původní'!F38 -> 0 | G38: ='2_Upravený'!G38-'1_Původní'!G38 -> 0 | H38: ='2_Upravený'!H38-'1_Původní'!H38 -> 0 | I38: ='2_Upravený'!I38-'1_Původní'!I38 -> 0 | J38: ='2_Upravený'!J38-'1_Původní'!J38 -> -44.6193 | K38: ='2_Upravený'!K38-'1_Původní'!K38 -> 0 | L38: ='2_Upravený'!L38-'1_Původní'!L38 -> 0 | M38: ='2_Upravený'!M38-'1_Původní'!M38 -> 0 | N38: ='2_Upravený'!N38-'1_Původní'!N38 -> 0 | O38: ='2_Upravený'!O38-'1_Původní'!O38 -> 0 | P38: -5002.316
B39: =IF('2_Upravený'!B39="","",'2_Upravený'!B39) -> 1112 | C39: =IF('2_Upravený'!C39="","",'2_Upravený'!C39) -> Lůžkové oddělení 29B | D39: ='2_Upravený'!D39-'1_Původní'!D39 -> 0 | E39: ='2_Upravený'!E39-'1_Původní'!E39 -> 0 | F39: ='2_Upravený'!F39-'1_Původní'!F39 -> 0 | G39: ='2_Upravený'!G39-'1_Původní'!G39 -> 0 | H39: ='2_Upravený'!H39-'1_Původní'!H39 -> 0 | I39: ='2_Upravený'!I39-'1_Původní'!I39 -> -74.3654 | J39: ='2_Upravený'!J39-'1_Původní'!J39 -> 0 | K39: ='2_Upravený'!K39-'1_Původní'!K39 -> 0 | L39: ='2_Upravený'!L39-'1_Původní'!L39 -> 0 | M39: ='2_Upravený'!M39-'1_Původní'!M39 -> 0 | N39: ='2_Upravený'!N39-'1_Původní'!N39 -> 0 | O39: ='2_Upravený'!O39-'1_Původní'!O39 -> 0 | P39: -74.3654
B40: =IF('2_Upravený'!B40="","",'2_Upravený'!B40) -> 1704 | C40: =IF('2_Upravený'!C40="","",'2_Upravený'!C40) -> OP VVV - Molekulární, buněčný a klinický přístup ke zdravému stárnutí | D40: ='2_Upravený'!D40-'1_Původní'!D40 -> 50000 | E40: ='2_Upravený'!E40-'1_Původní'!E40 -> 50000 | F40: ='2_Upravený'!F40-'1_Původní'!F40 -> 50000 | G40: ='2_Upravený'!G40-'1_Původní'!G40 -> 50000 | H40: ='2_Upravený'!H40-'1_Původní'!H40 -> 50000 | I40: ='2_Upravený'!I40-'1_Původní'!I40 -> 50000 | J40: ='2_Upravený'!J40-'1_Původní'!J40 -> 50000 | K40: ='2_Upravený'!K40-'1_Původní'!K40 -> 50000 | L40: ='2_Upravený'!L40-'1_Původní'!L40 -> 49328.2321 | M40: ='2_Upravený'!M40-'1_Původní'!M40 -> 50000 | N40: ='2_Upravený'!N40-'1_Původní'!N40 -> 50000 | O40: ='2_Upravený'!O40-'1_Původní'!O40 -> 50000 | P40: 599328.2321
B41: =IF('2_Upravený'!B41="","",'2_Upravený'!B41) -> 2622 | C41: =IF('2_Upravený'!C41="","",'2_Upravený'!C41) -> RHC ambulance + kineziologie,kinezioterapie | D41: ='2_Upravený'!D41-'1_Původní'!D41 -> 0 | E41: ='2_Upravený'!E41-'1_Původní'!E41 -> 0 | F41: ='2_Upravený'!F41-'1_Původní'!F41 -> 0 | G41: ='2_Upravený'!G41-'1_Původní'!G41 -> 0 | H41: ='2_Upravený'!H41-'1_Původní'!H41 -> 0 | I41: ='2_Upravený'!I41-'1_Původní'!I41 -> -371.8272 | J41: ='2_Upravený'!J41-'1_Původní'!J41 -> 0 | K41: ='2_Upravený'!K41-'1_Původní'!K41 -> 0 | L41: ='2_Upravený'!L41-'1_Původní'!L41 -> 0 | M41: ='2_Upravený'!M41-'1_Původní'!M41 -> 0 | N41: ='2_Upravený'!N41-'1_Původní'!N41 -> 0 | O41: ='2_Upravený'!O41-'1_Původní'!O41 -> 0 | P41: -371.8272
B42: =IF('2_Upravený'!B42="","",'2_Upravený'!B42) -> 3341 | C42: =IF('2_Upravený'!C42="","",'2_Upravený'!C42) -> Centrální laboratoř | D42: ='2_Upravený'!D42-'1_Původní'!D42 -> 0 | E42: ='2_Upravený'!E42-'1_Původní'!E42 -> 0 | F42: ='2_Upravený'!F42-'1_Původní'!F42 -> 0 | G42: ='2_Upravený'!G42-'1_Původní'!G42 -> 0 | H42: ='2_Upravený'!H42-'1_Původní'!H42 -> 0 | I42: ='2_Upravený'!I42-'1_Původní'!I42 -> 0 | J42: ='2_Upravený'!J42-'1_Původní'!J42 -> 0 | K42: ='2_Upravený'!K42-'1_Původní'!K42 -> 0 | L42: ='2_Upravený'!L42-'1_Původní'!L42 -> 0 | M42: ='2_Upravený'!M42-'1_Původní'!M42 -> 0 | N42: ='2_Upravený'!N42-'1_Původní'!N42 -> -4109.4348 | O42: ='2_Upravený'!O42-'1_Původní'!O42 -> 0 | P42: -4109.4348
B43: =IF('2_Upravený'!B43="","",'2_Upravený'!B43) -> 3590 | C43: =IF('2_Upravený'!C43="","",'2_Upravený'!C43) -> Výroba | D43: ='2_Upravený'!D43-'1_Původní'!D43 -> 0 | E43: ='2_Upravený'!E43-'1_Původní'!E43 -> 0 | F43: ='2_Upravený'!F43-'1_Původní'!F43 -> 0 | G43: ='2_Upravený'!G43-'1_Původní'!G43 -> 0 | H43: ='2_Upravený'!H43-'1_Původní'!H43 -> 0 | I43: ='2_Upravený'!I43-'1_Původní'!I43 -> 0 | J43: ='2_Upravený'!J43-'1_Původní'!J43 -> 0 | K43: ='2_Upravený'!K43-'1_Původní'!K43 -> 0 | L43: ='2_Upravený'!L43-'1_Původní'!L43 -> 0 | M43: ='2_Upravený'!M43-'1_Původní'!M43 -> 0 | N43: ='2_Upravený'!N43-'1_Původní'!N43 -> -849.2534 | O43: ='2_Upravený'!O43-'1_Původní'!O43 -> 0 | P43: -849.2534
B44: =IF('2_Upravený'!B44="","",'2_Upravený'!B44) -> 4141 | C44: =IF('2_Upravený'!C44="","",'2_Upravený'!C44) -> Imunologie - laboratoř | D44: ='2_Upravený'!D44-'1_Původní'!D44 -> -24895.0738 | E44: ='2_Upravený'!E44-'1_Původní'!E44 -> 0 | F44: ='2_Upravený'!F44-'1_Původní'!F44 -> 0 | G44: ='2_Upravený'!G44-'1_Původní'!G44 -> 0 | H44: ='2_Upravený'!H44-'1_Původní'!H44 -> 0 | I44: ='2_Upravený'!I44-'1_Původní'!I44 -> 0 | J44: ='2_Upravený'!J44-'1_Původní'!J44 -> 0 | K44: ='2_Upravený'!K44-'1_Původní'!K44 -> 0 | L44: ='2_Upravený'!L44-'1_Původní'!L44 -> 0 | M44: ='2_Upravený'!M44-'1_Původní'!M44 -> 0 | N44: ='2_Upravený'!N44-'1_Původní'!N44 -> 0 | O44: ='2_Upravený'!O44-'1_Původní'!O44 -> 0 | P44: -24895.0738
B45: =IF('2_Upravený'!B45="","",'2_Upravený'!B45) -> 4764 | C45: =IF('2_Upravený'!C45="","",'2_Upravený'!C45) -> Centrální operační sály | D45: ='2_Upravený'!D45-'1_Původní'!D45 -> 0 | E45: ='2_Upravený'!E45-'1_Původní'!E45 -> 0 | F45: ='2_Upravený'!F45-'1_Původní'!F45 -> 0 | G45: ='2_Upravený'!G45-'1_Původní'!G45 -> 0 | H45: ='2_Upravený'!H45-'1_Původní'!H45 -> 0 | I45: ='2_Upravený'!I45-'1_Původní'!I45 -> 0 | J45: ='2_Upravený'!J45-'1_Původní'!J45 -> 0 | K45: ='2_Upravený'!K45-'1_Původní'!K45 -> 0 | L45: ='2_Upravený'!L45-'1_Původní'!L45 -> -267.7156 | M45: ='2_Upravený'!M45-'1_Původní'!M45 -> 0 | N45: ='2_Upravený'!N45-'1_Původní'!N45 -> 0 | O45: ='2_Upravený'!O45-'1_Původní'!O45 -> 0 | P45: -267.7156
B46: =IF('2_Upravený'!B46="","",'2_Upravený'!B46) -> 5693 | C46: =IF('2_Upravený'!C46="","",'2_Upravený'!C46) -> Oddělení centrální sterilizace | D46: ='2_Upravený'!D46-'1_Původní'!D46 -> 0 | E46: ='2_Upravený'!E46-'1_Původní'!E46 -> 0 | F46: ='2_Upravený'!F46-'1_Původní'!F46 -> 0 | G46: ='2_Upravený'!G46-'1_Původní'!G46 -> 0 | H46: ='2_Upravený'!H46-'1_Původní'!H46 -> 0 | I46: ='2_Upravený'!I46-'1_Původní'!I46 -> 0 | J46: ='2_Upravený'!J46-'1_Původní'!J46 -> 0 | K46: ='2_Upravený'!K46-'1_Původní'!K46 -> 0 | L46: ='2_Upravený'!L46-'1_Původní'!L46 -> -1133.3295 | M46: ='2_Upravený'!M46-'1_Původní'!M46 -> 0 | N46: ='2_Upravený'!N46-'1_Původní'!N46 -> 0 | O46: ='2_Upravený'!O46-'1_Původní'!O46 -> 0 | P46: -1133.3295
B47: =IF('2_Upravený'!B47="","",'2_Upravený'!B47) -> 8108 | C47: =IF('2_Upravený'!C47="","",'2_Upravený'!C47) -> Klinická hodnocení - Porodnicko-gynekologická klinika | D47: ='2_Upravený'!D47-'1_Původní'!D47 -> 0 | E47: ='2_Upravený'!E47-'1_Původní'!E47 -> 0 | F47: ='2_Upravený'!F47-'1_Původní'!F47 -> 0 | G47: ='2_Upravený'!G47-'1_Původní'!G47 -> 0 | H47: ='2_Upravený'!H47-'1_Původní'!H47 -> 0 | I47: ='2_Upravený'!I47-'1_Původní'!I47 -> 0 | J47: ='2_Upravený'!J47-'1_Původní'!J47 -> 0 | K47: ='2_Upravený'!K47-'1_Původní'!K47 -> 0 | L47: ='2_Upravený'!L47-'1_Původní'!L47 -> 0 | M47: ='2_Upravený'!M47-'1_Původní'!M47 -> -3217.5451 | N47: ='2_Upravený'!N47-'1_Původní'!N47 -> 0 | O47: ='2_Upravený'!O47-'1_Původní'!O47 -> 0 | P47: -3217.5451
B48: =IF('2_Upravený'!B48="","",'2_Upravený'!B48) -> 8121 | C48: =IF('2_Upravený'!C48="","",'2_Upravený'!C48) -> Klinická hodnocení - Onkologická klinika | D48: ='2_Upravený'!D48-'1_Původní'!D48 -> 0 | E48: ='2_Upravený'!E48-'1_Původní'!E48 -> 0 | F48: ='2_Upravený'!F48-'1_Původní'!F48 -> 0 | G48: ='2_Upravený'!G48-'1_Původní'!G48 -> 0 | H48: ='2_Upravený'!H48-'1_Původní'!H48 -> 0 | I48: ='2_Upravený'!I48-'1_Původní'!I48 -> 0 | J48: ='2_Upravený'!J48-'1_Původní'!J48 -> 0 | K48: ='2_Upravený'!K48-'1_Původní'!K48 -> 0 | L48: ='2_Upravený'!L48-'1_Původní'!L48 -> 0 | M48: ='2_Upravený'!M48-'1_Původní'!M48 -> 0 | N48: ='2_Upravený'!N48-'1_Původní'!N48 -> -1239.4242 | O48: ='2_Upravený'!O48-'1_Původní'!O48 -> 0 | P48: -1239.4242
B49: =IF('2_Upravený'!B49="","",'2_Upravený'!B49) -> 8507 | C49: =IF('2_Upravený'!C49="","",'2_Upravený'!C49) -> Prof. MUDr. Vítězslav Kolek, DrSc. - PLIC | D49: ='2_Upravený'!D49-'1_Původní'!D49 -> 0 | E49: ='2_Upravený'!E49-'1_Původní'!E49 -> 0 | F49: ='2_Upravený'!F49-'1_Původní'!F49 -> 0 | G49: ='2_Upravený'!G49-'1_Původní'!G49 -> 0 | H49: ='2_Upravený'!H49-'1_Původní'!H49 -> 0 | I49: ='2_Upravený'!I49-'1_Původní'!I49 -> 0 | J49: ='2_Upravený'!J49-'1_Původní'!J49 -> 0 | K49: ='2_Upravený'!K49-'1_Původní'!K49 -> 0 | L49: ='2_Upravený'!L49-'1_Původní'!L49 -> -361.9119 | M49: ='2_Upravený'!M49-'1_Původní'!M49 -> 0 | N49: ='2_Upravený'!N49-'1_Původní'!N49 -> 0 | O49: ='2_Upravený'!O49-'1_Původní'!O49 -> 0 | P49: -361.9119
B50: =IF('2_Upravený'!B50="","",'2_Upravený'!B50) -> 8509 | C50: =IF('2_Upravený'!C50="","",'2_Upravený'!C50) -> Doc. MUDr. Daniel Šaňák, PhD. - NEUROL | D50: ='2_Upravený'!D50-'1_Původní'!D50 -> 0 | E50: ='2_Upravený'!E50-'1_Původní'!E50 -> 0 | F50: ='2_Upravený'!F50-'1_Původní'!F50 -> 0 | G50: ='2_Upravený'!G50-'1_Původní'!G50 -> 0 | H50: ='2_Upravený'!H50-'1_Původní'!H50 -> 0 | I50: ='2_Upravený'!I50-'1_Původní'!I50 -> 0 | J50: ='2_Upravený'!J50-'1_Původní'!J50 -> 0 | K50: ='2_Upravený'!K50-'1_Původní'!K50 -> 0 | L50: ='2_Upravený'!L50-'1_Původní'!L50 -> 0 | M50: ='2_Upravený'!M50-'1_Původní'!M50 -> -347.9312 | N50: ='2_Upravený'!N50-'1_Původní'!N50 -> 0 | O50: ='2_Upravený'!O50-'1_Původní'!O50 -> 0 | P50: -347.9312
B51: =IF('2_Upravený'!B51="","",'2_Upravený'!B51) -> 8510 | C51: =IF('2_Upravený'!C51="","",'2_Upravený'!C51) -> Doc. MUDr. Petr Hamal, PhD. - MIKRO | D51: ='2_Upravený'!D51-'1_Původní'!D51 -> 0 | E51: ='2_Upravený'!E51-'1_Původní'!E51 -> 0 | F51: ='2_Upravený'!F51-'1_Původní'!F51 -> 0 | G51: ='2_Upravený'!G51-'1_Původní'!G51 -> 0 | H51: ='2_Upravený'!H51-'1_Původní'!H51 -> 0 | I51: ='2_Upravený'!I51-'1_Původní'!I51 -> 0 | J51: ='2_Upravený'!J51-'1_Původní'!J51 -> -419.9169 | K51: ='2_Upravený'!K51-'1_Původní'!K51 -> -6120.4996 | L51: ='2_Upravený'!L51-'1_Původní'!L51 -> 0 | M51: ='2_Upravený'!M51-'1_Původní'!M51 -> 0 | N51: ='2_Upravený'!N51-'1_Původní'!N51 -> -386.9234 | O51: ='2_Upravený'!O51-'1_Původní'!O51 -> 0 | P51: -6927.3399
B52: =IF('2_Upravený'!B52="","",'2_Upravený'!B52) -> 8533 | C52: =IF('2_Upravený'!C52="","",'2_Upravený'!C52) -> MUDr. Milan Král, Ph.D. - UROL | D52: ='2_Upravený'!D52-'1_Původní'!D52 -> 0 | E52: ='2_Upravený'!E52-'1_Původní'!E52 -> 0 | F52: ='2_Upravený'!F52-'1_Původní'!F52 -> 0 | G52: ='2_Upravený'!G52-'1_Původní'!G52 -> 0 | H52: ='2_Upravený'!H52-'1_Původní'!H52 -> 0 | I52: ='2_Upravený'!I52-'1_Původní'!I52 -> 0 | J52: ='2_Upravený'!J52-'1_Původní'!J52 -> 0 | K52: ='2_Upravený'!K52-'1_Původní'!K52 -> 0 | L52: ='2_Upravený'!L52-'1_Původní'!L52 -> 0 | M52: ='2_Upravený'!M52-'1_Původní'!M52 -> 0 | N52: ='2_Upravený'!N52-'1_Původní'!N52 -> -644.5006 | O52: ='2_Upravený'!O52-'1_Původní'!O52 -> 0 | P52: -644.5006
B53: =IF('2_Upravený'!B53="","",'2_Upravený'!B53) -> 8541 | C53: =IF('2_Upravený'!C53="","",'2_Upravený'!C53) -> MUDr. Richard Salzman, Ph.D. - ORL | D53: ='2_Upravený'!D53-'1_Původní'!D53 -> 0 | E53: ='2_Upravený'!E53-'1_Původní'!E53 -> 0 | F53: ='2_Upravený'!F53-'1_Původní'!F53 -> 0 | G53: ='2_Upravený'!G53-'1_Původní'!G53 -> 0 | H53: ='2_Upravený'!H53-'1_Původní'!H53 -> 0 | I53: ='2_Upravený'!I53-'1_Původní'!I53 -> 0 | J53: ='2_Upravený'!J53-'1_Původní'!J53 -> 0 | K53: ='2_Upravený'!K53-'1_Původní'!K53 -> 0 | L53: ='2_Upravený'!L53-'1_Původní'!L53 -> -14873.09 | M53: ='2_Upravený'!M53-'1_Původní'!M53 -> 0 | N53: ='2_Upravený'!N53-'1_Původní'!N53 -> 0 | O53: ='2_Upravený'!O53-'1_Původní'!O53 -> 0 | P53: -14873.09
B54: =IF('2_Upravený'!B54="","",'2_Upravený'!B54) -> 8555 | C54: =IF('2_Upravený'!C54="","",'2_Upravený'!C54) -> Doc. RNDr. Radek Vrtěl, PhD. - GENETIKA | D54: ='2_Upravený'!D54-'1_Původní'!D54 -> 0 | E54: ='2_Upravený'!E54-'1_Původní'!E54 -> 0 | F54: ='2_Upravený'!F54-'1_Původní'!F54 -> 0 | G54: ='2_Upravený'!G54-'1_Původní'!G54 -> 0 | H54: ='2_Upravený'!H54-'1_Původní'!H54 -> 0 | I54: ='2_Upravený'!I54-'1_Původní'!I54 -> 0 | J54: ='2_Upravený'!J54-'1_Původní'!J54 -> 0 | K54: ='2_Upravený'!K54-'1_Původní'!K54 -> -117.9932 | L54: ='2_Upravený'!L54-'1_Původní'!L54 -> 0 | M54: ='2_Upravený'!M54-'1_Původní'!M54 -> -84.2808 | N54: ='2_Upravený'!N54-'1_Původní'!N54 -> -4957.6967 | O54: ='2_Upravený'!O54-'1_Původní'!O54 -> 0 | P54: -5159.9707
B55: =IF('2_Upravený'!B55="","",'2_Upravený'!B55) -> 8556 | C55: =IF('2_Upravený'!C55="","",'2_Upravený'!C55) -> MUDr. Tomáš Veverka, PhD. - NEUROL | D55: ='2_Upravený'!D55-'1_Původní'!D55 -> 0 | E55: ='2_Upravený'!E55-'1_Původní'!E55 -> 0 | F55: ='2_Upravený'!F55-'1_Původní'!F55 -> 0 | G55: ='2_Upravený'!G55-'1_Původní'!G55 -> -40394.0284 | H55: ='2_Upravený'!H55-'1_Původní'!H55 -> 0 | I55: ='2_Upravený'!I55-'1_Původní'!I55 -> 0 | J55: ='2_Upravený'!J55-'1_Původní'!J55 -> -2190.8062 | K55: ='2_Upravený'!K55-'1_Původní'!K55 -> 0 | L55: ='2_Upravený'!L55-'1_Původní'!L55 -> 0 | M55: ='2_Upravený'!M55-'1_Původní'!M55 -> -206.959 | N55: ='2_Upravený'!N55-'1_Původní'!N55 -> 0 | O55: ='2_Upravený'!O55-'1_Původní'!O55 -> 0 | P55: -42791.7936
B56: =IF('2_Upravený'!B56="","",'2_Upravený'!B56) -> 8558 | C56: =IF('2_Upravený'!C56="","",'2_Upravený'!C56) -> MUDr. Filip Čtvrtlík, PhD. - RTG | D56: ='2_Upravený'!D56-'1_Původní'!D56 -> 0 | E56: ='2_Upravený'!E56-'1_Původní'!E56 -> 0 | F56: ='2_Upravený'!F56-'1_Původní'!F56 -> 0 | G56: ='2_Upravený'!G56-'1_Původní'!G56 -> 0 | H56: ='2_Upravený'!H56-'1_Původní'!H56 -> 0 | I56: ='2_Upravený'!I56-'1_Původní'!I56 -> -3966.1573 | J56: ='2_Upravený'!J56-'1_Původní'!J56 -> 0 | K56: ='2_Upravený'!K56-'1_Původní'!K56 -> -22148.0141 | L56: ='2_Upravený'!L56-'1_Původní'!L56 -> -4957.6967 | M56: ='2_Upravený'!M56-'1_Původní'!M56 -> 0 | N56: ='2_Upravený'!N56-'1_Původní'!N56 -> -3966.1573 | O56: ='2_Upravený'!O56-'1_Původní'!O56 -> 0 | P56: -35038.0254
B57: =IF('2_Upravený'!B57="","",'2_Upravený'!B57) -> 8559 | C57: =IF('2_Upravený'!C57="","",'2_Upravený'!C57) -> MUDr. JUDr. Dušan Klos, Ph.D. - I.CHIR | D57: ='2_Upravený'!D57-'1_Původní'!D57 -> 0 | E57: ='2_Upravený'!E57-'1_Původní'!E57 -> 0 | F57: ='2_Upravený'!F57-'1_Původní'!F57 -> 0 | G57: ='2_Upravený'!G57-'1_Původní'!G57 -> 0 | H57: ='2_Upravený'!H57-'1_Původní'!H57 -> 0 | I57: ='2_Upravený'!I57-'1_Původní'!I57 -> 0 | J57: ='2_Upravený'!J57-'1_Původní'!J57 -> 0 | K57: ='2_Upravený'!K57-'1_Původní'!K57 -> 0 | L57: ='2_Upravený'!L57-'1_Původní'!L57 -> -3420.3149 | M57: ='2_Upravený'!M57-'1_Původní'!M57 -> 0 | N57: ='2_Upravený'!N57-'1_Původní'!N57 -> 0 | O57: ='2_Upravený'!O57-'1_Původní'!O57 -> 0 | P57: -3420.3149
B58: =IF('2_Upravený'!B58="","",'2_Upravený'!B58) -> 8563 | C58: =IF('2_Upravený'!C58="","",'2_Upravený'!C58) -> Doc. MUDr. Jan Minařík, Ph.D. - HOK | D58: ='2_Upravený'!D58-'1_Původní'!D58 -> 0 | E58: ='2_Upravený'!E58-'1_Původní'!E58 -> 0 | F58: ='2_Upravený'!F58-'1_Původní'!F58 -> 0 | G58: ='2_Upravený'!G58-'1_Původní'!G58 -> 0 | H58: ='2_Upravený'!H58-'1_Původní'!H58 -> 0 | I58: ='2_Upravený'!I58-'1_Původní'!I58 -> 0 | J58: ='2_Upravený'!J58-'1_Původní'!J58 -> 0 | K58: ='2_Upravený'!K58-'1_Původní'!K58 -> -719.8576 | L58: ='2_Upravený'!L58-'1_Původní'!L58 -> 0 | M58: ='2_Upravený'!M58-'1_Původní'!M58 -> 0 | N58: ='2_Upravený'!N58-'1_Původní'!N58 -> 0 | O58: ='2_Upravený'!O58-'1_Původní'!O58 -> 0 | P58: -719.8576
B59: =IF('2_Upravený'!B59="","",'2_Upravený'!B59) -> 8565 | C59: =IF('2_Upravený'!C59="","",'2_Upravený'!C59) -> Prof. MUDr. Ing. Petr Hluštík, Ph.D. - NEUROL | D59: ='2_Upravený'!D59-'1_Původní'!D59 -> 0 | E59: ='2_Upravený'!E59-'1_Původní'!E59 -> 0 | F59: ='2_Upravený'!F59-'1_Původní'!F59 -> 0 | G59: ='2_Upravený'!G59-'1_Původní'!G59 -> 0 | H59: ='2_Upravený'!H59-'1_Původní'!H59 -> 0 | I59: ='2_Upravený'!I59-'1_Původní'!I59 -> 0 | J59: ='2_Upravený'!J59-'1_Původní'!J59 -> 0 | K59: ='2_Upravený'!K59-'1_Původní'!K59 -> 0 | L59: ='2_Upravený'!L59-'1_Původní'!L59 -> 0 | M59: ='2_Upravený'!M59-'1_Původní'!M59 -> -1604.8064 | N59: ='2_Upravený'!N59-'1_Původní'!N59 -> 0 | O59: ='2_Upravený'!O59-'1_Původní'!O59 -> 0 | P59: -1604.8064
B60: =IF('2_Upravený'!B60="","",'2_Upravený'!B60) -> 8709 | C60: =IF('2_Upravený'!C60="","",'2_Upravený'!C60) -> RIV: MUDr. Aleš Grambal, PhD. | D60: ='2_Upravený'!D60-'1_Původní'!D60 -> 0 | E60: ='2_Upravený'!E60-'1_Původní'!E60 -> 0 | F60: ='2_Upravený'!F60-'1_Původní'!F60 -> 0 | G60: ='2_Upravený'!G60-'1_Původní'!G60 -> 0 | H60: ='2_Upravený'!H60-'1_Původní'!H60 -> 0 | I60: ='2_Upravený'!I60-'1_Původní'!I60 -> 0 | J60: ='2_Upravený'!J60-'1_Původní'!J60 -> 0 | K60: ='2_Upravený'!K60-'1_Původní'!K60 -> 0 | L60: ='2_Upravený'!L60-'1_Původní'!L60 -> 0 | M60: ='2_Upravený'!M60-'1_Původní'!M60 -> 0 | N60: ='2_Upravený'!N60-'1_Původní'!N60 -> -38957.8878 | O60: ='2_Upravený'!O60-'1_Původní'!O60 -> 0 | P60: -38957.8878
B61: =IF('2_Upravený'!B61="","",'2_Upravený'!B61) -> 8710 | C61: =IF('2_Upravený'!C61="","",'2_Upravený'!C61) -> RIV: MUDr. Štefan Trnka | D61: ='2_Upravený'!D61-'1_Původní'!D61 -> 0 | E61: ='2_Upravený'!E61-'1_Původní'!E61 -> 0 | F61: ='2_Upravený'!F61-'1_Původní'!F61 -> 0 | G61: ='2_Upravený'!G61-'1_Původní'!G61 -> 0 | H61: ='2_Upravený'!H61-'1_Původní'!H61 -> 0 | I61: ='2_Upravený'!I61-'1_Původní'!I61 -> 0 | J61: ='2_Upravený'!J61-'1_Původní'!J61 -> -559.2282 | K61: ='2_Upravený'!K61-'1_Původní'!K61 -> -410.9931 | L61: ='2_Upravený'!L61-'1_Původní'!L61 -> 0 | M61: ='2_Upravený'!M61-'1_Původní'!M61 -> -21212.9925 | N61: ='2_Upravený'!N61-'1_Původní'!N61 -> -3390.073 | O61: ='2_Upravený'!O61-'1_Původní'!O61 -> 0 | P61: -25573.2868
B62: =IF('2_Upravený'!B62="","",'2_Upravený'!B62) -> 8712 | C62: =IF('2_Upravený'!C62="","",'2_Upravený'!C62) -> RIV: prof. MUDr. Jiří Gallo, PhD. | D62: ='2_Upravený'!D62-'1_Původní'!D62 -> 0 | E62: ='2_Upravený'!E62-'1_Původní'!E62 -> 0 | F62: ='2_Upravený'!F62-'1_Původní'!F62 -> 0 | G62: ='2_Upravený'!G62-'1_Původní'!G62 -> 0 | H62: ='2_Upravený'!H62-'1_Původní'!H62 -> 0 | I62: ='2_Upravený'!I62-'1_Původní'!I62 -> 0 | J62: ='2_Upravený'!J62-'1_Původní'!J62 -> 0 | K62: ='2_Upravený'!K62-'1_Původní'!K62 -> 0 | L62: ='2_Upravený'!L62-'1_Původní'!L62 -> -31134.3351 | M62: ='2_Upravený'!M62-'1_Původní'!M62 -> 0 | N62: ='2_Upravený'!N62-'1_Původní'!N62 -> 0 | O62: ='2_Upravený'!O62-'1_Původní'!O62 -> 0 | P62: -31134.3351
B63: =IF('2_Upravený'!B63="","",'2_Upravený'!B63) -> 8715 | C63: =IF('2_Upravený'!C63="","",'2_Upravený'!C63) -> RIV: MUDr. Karel Huml | D63: ='2_Upravený'!D63-'1_Původní'!D63 -> 0 | E63: ='2_Upravený'!E63-'1_Původní'!E63 -> 0 | F63: ='2_Upravený'!F63-'1_Původní'!F63 -> 0 | G63: ='2_Upravený'!G63-'1_Původní'!G63 -> 0 | H63: ='2_Upravený'!H63-'1_Původní'!H63 -> 0 | I63: ='2_Upravený'!I63-'1_Původní'!I63 -> 0 | J63: ='2_Upravený'!J63-'1_Původní'!J63 -> 0 | K63: ='2_Upravený'!K63-'1_Původní'!K63 -> 0 | L63: ='2_Upravený'!L63-'1_Původní'!L63 -> 0 | M63: ='2_Upravený'!M63-'1_Původní'!M63 -> 0 | N63: ='2_Upravený'!N63-'1_Původní'!N63 -> -46653.5369 | O63: ='2_Upravený'!O63-'1_Původní'!O63 -> 0 | P63: -46653.5369
B64: =IF('2_Upravený'!B64="","",'2_Upravený'!B64) -> 8716 | C64: =IF('2_Upravený'!C64="","",'2_Upravený'!C64) -> RIV: MUDr. Beáta Hutyrová, PhD. | D64: ='2_Upravený'!D64-'1_Původní'!D64 -> 0 | E64: ='2_Upravený'!E64-'1_Původní'!E64 -> 0 | F64: ='2_Upravený'!F64-'1_Původní'!F64 -> 0 | G64: ='2_Upravený'!G64-'1_Původní'!G64 -> 0 | H64: ='2_Upravený'!H64-'1_Původní'!H64 -> 0 | I64: ='2_Upravený'!I64-'1_Původní'!I64 -> 0 | J64: ='2_Upravený'!J64-'1_Původní'!J64 -> 0 | K64: ='2_Upravený'!K64-'1_Původní'!K64 -> 0 | L64: ='2_Upravený'!L64-'1_Původní'!L64 -> -491.8035 | M64: ='2_Upravený'!M64-'1_Původní'!M64 -> 0 | N64: ='2_Upravený'!N64-'1_Původní'!N64 -> 0 | O64: ='2_Upravený'!O64-'1_Původní'!O64 -> 0 | P64: -491.8035
B65: =IF('2_Upravený'!B65="","",'2_Upravený'!B65) -> 8720 | C65: =IF('2_Upravený'!C65="","",'2_Upravený'!C65) -> RIV: MUDr. Petr Kolář, PhD. | D65: ='2_Upravený'!D65-'1_Původní'!D65 -> 0 | E65: ='2_Upravený'!E65-'1_Původní'!E65 -> 0 | F65: ='2_Upravený'!F65-'1_Původní'!F65 -> 0 | G65: ='2_Upravený'!G65-'1_Původní'!G65 -> -2943.3845 | H65: ='2_Upravený'!H65-'1_Původní'!H65 -> 0 | I65: ='2_Upravený'!I65-'1_Původní'!I65 -> 0 | J65: ='2_Upravený'!J65-'1_Původní'!J65 -> 0 | K65: ='2_Upravený'!K65-'1_Původní'!K65 -> 0 | L65: ='2_Upravený'!L65-'1_Původní'!L65 -> -760.6495 | M65: ='2_Upravený'!M65-'1_Původní'!M65 -> 0 | N65: ='2_Upravený'!N65-'1_Původní'!N65 -> 0 | O65: ='2_Upravený'!O65-'1_Původní'!O65 -> 0 | P65: -3704.034
B66: =IF('2_Upravený'!B66="","",'2_Upravený'!B66) -> 8721 | C66: =IF('2_Upravený'!C66="","",'2_Upravený'!C66) -> RIV: MUDr. Andrea Smržová | D66: ='2_Upravený'!D66-'1_Původní'!D66 -> 0 | E66: ='2_Upravený'!E66-'1_Původní'!E66 -> 0 | F66: ='2_Upravený'!F66-'1_Původní'!F66 -> 0 | G66: ='2_Upravený'!G66-'1_Původní'!G66 -> 0 | H66: ='2_Upravený'!H66-'1_Původní'!H66 -> 0 | I66: ='2_Upravený'!I66-'1_Původní'!I66 -> -15362.96 | J66: ='2_Upravený'!J66-'1_Původní'!J66 -> 0 | K66: ='2_Upravený'!K66-'1_Původní'!K66 -> 0 | L66: ='2_Upravený'!L66-'1_Původní'!L66 -> -991.0436 | M66: ='2_Upravený'!M66-'1_Původní'!M66 -> 0 | N66: ='2_Upravený'!N66-'1_Původní'!N66 -> 0 | O66: ='2_Upravený'!O66-'1_Původní'!O66 -> 0 | P66: -16354.0036
B67: =IF('2_Upravený'!B67="","",'2_Upravený'!B67) -> 8725 | C67: =IF('2_Upravený'!C67="","",'2_Upravený'!C67) -> RIV: MUDr. Helena Urbánková | D67: ='2_Upravený'!D67-'1_Původní'!D67 -> 0 | E67: ='2_Upravený'!E67-'1_Původní'!E67 -> 0 | F67: ='2_Upravený'!F67-'1_Původní'!F67 -> 0 | G67: ='2_Upravený'!G67-'1_Původní'!G67 -> 0 | H67: ='2_Upravený'!H67-'1_Původní'!H67 -> -233.2398 | I67: ='2_Upravený'!I67-'1_Původní'!I67 -> 0 | J67: ='2_Upravený'!J67-'1_Původní'!J67 -> -864.1265 | K67: ='2_Upravený'!K67-'1_Původní'!K67 -> 0 | L67: ='2_Upravený'!L67-'1_Původní'!L67 -> -9714.8743 | M67: ='2_Upravený'!M67-'1_Původní'!M67 -> -432.3111 | N67: ='2_Upravený'!N67-'1_Původní'!N67 -> 0 | O67: ='2_Upravený'!O67-'1_Původní'!O67 -> -2289.028 | P67: -13533.5797
B68: =IF('2_Upravený'!B68="","",'2_Upravený'!B68) -> 8753 | C68: =IF('2_Upravený'!C68="","",'2_Upravený'!C68) -> RIV: MUDr. Richard Salzmann, Ph.D. | D68: ='2_Upravený'!D68-'1_Původní'!D68 -> 0 | E68: ='2_Upravený'!E68-'1_Původní'!E68 -> 0 | F68: ='2_Upravený'!F68-'1_Původní'!F68 -> 0 | G68: ='2_Upravený'!G68-'1_Původní'!G68 -> -4957.6967 | H68: ='2_Upravený'!H68-'1_Původní'!H68 -> 0 | I68: ='2_Upravený'!I68-'1_Původní'!I68 -> 0 | J68: ='2_Upravený'!J68-'1_Původní'!J68 -> 0 | K68: ='2_Upravený'!K68-'1_Původní'!K68 -> 0 | L68: ='2_Upravený'!L68-'1_Původní'!L68 -> 0 | M68: ='2_Upravený'!M68-'1_Původní'!M68 -> 0 | N68: ='2_Upravený'!N68-'1_Původní'!N68 -> 0 | O68: ='2_Upravený'!O68-'1_Původní'!O68 -> 0 | P68: -4957.6967
B69: =IF('2_Upravený'!B69="","",'2_Upravený'!B69) -> 8755 | C69: =IF('2_Upravený'!C69="","",'2_Upravený'!C69) -> RIV - MUDr. Roman Hájek, Ph. D. | D69: ='2_Upravený'!D69-'1_Původní'!D69 -> 0 | E69: ='2_Upravený'!E69-'1_Původní'!E69 -> 0 | F69: ='2_Upravený'!F69-'1_Původní'!F69 -> 0 | G69: ='2_Upravený'!G69-'1_Původní'!G69 -> 0 | H69: ='2_Upravený'!H69-'1_Původní'!H69 -> -14112.2025 | I69: ='2_Upravený'!I69-'1_Původní'!I69 -> 0 | J69: ='2_Upravený'!J69-'1_Původní'!J69 -> -551.7916 | K69: ='2_Upravený'!K69-'1_Původní'!K69 -> 0 | L69: ='2_Upravený'!L69-'1_Původní'!L69 -> 0 | M69: ='2_Upravený'!M69-'1_Původní'!M69 -> 0 | N69: ='2_Upravený'!N69-'1_Původní'!N69 -> 0 | O69: ='2_Upravený'!O69-'1_Původní'!O69 -> 0 | P69: -14663.9941
B70: =IF('2_Upravený'!B70="","",'2_Upravený'!B70) -> 8760 | C70: =IF('2_Upravený'!C70="","",'2_Upravený'!C70) -> RIV: RNDr. Martin Novák, Ph.D. | D70: ='2_Upravený'!D70-'1_Původní'!D70 -> 0 | E70: ='2_Upravený'!E70-'1_Původní'!E70 -> 0 | F70: ='2_Upravený'!F70-'1_Původní'!F70 -> 0 | G70: ='2_Upravený'!G70-'1_Původní'!G70 -> 0 | H70: ='2_Upravený'!H70-'1_Původní'!H70 -> 0 | I70: ='2_Upravený'!I70-'1_Původní'!I70 -> -359.9288 | J70: ='2_Upravený'!J70-'1_Původní'!J70 -> 0 | K70: ='2_Upravený'!K70-'1_Původní'!K70 -> 0 | L70: ='2_Upravený'!L70-'1_Původní'!L70 -> 0 | M70: ='2_Upravený'!M70-'1_Původní'!M70 -> 0 | N70: ='2_Upravený'!N70-'1_Původní'!N70 -> -26994.6583 | O70: ='2_Upravený'!O70-'1_Původní'!O70 -> -1689.8061 | P70: -29044.3932
B71: =IF('2_Upravený'!B71="","",'2_Upravený'!B71) -> 8762 | C71: =IF('2_Upravený'!C71="","",'2_Upravený'!C71) -> RIV - Doc. MUDr. David Karásek, Ph. D. | D71: ='2_Upravený'!D71-'1_Původní'!D71 -> -9915.3933 | E71: ='2_Upravený'!E71-'1_Původní'!E71 -> 0 | F71: ='2_Upravený'!F71-'1_Původní'!F71 -> -4957.6967 | G71: ='2_Upravený'!G71-'1_Původní'!G71 -> 0 | H71: ='2_Upravený'!H71-'1_Původní'!H71 -> 0 | I71: ='2_Upravený'!I71-'1_Původní'!I71 -> 0 | J71: ='2_Upravený'!J71-'1_Původní'!J71 -> 0 | K71: ='2_Upravený'!K71-'1_Původní'!K71 -> -9518.7776 | L71: ='2_Upravený'!L71-'1_Původní'!L71 -> 0 | M71: ='2_Upravený'!M71-'1_Původní'!M71 -> -3905.3512 | N71: ='2_Upravený'!N71-'1_Původní'!N71 -> -5475.9495 | O71: ='2_Upravený'!O71-'1_Původní'!O71 -> 0 | P71: -33773.1683
B72: =IF('2_Upravený'!B72="","",'2_Upravený'!B72) -> 8767 | C72: =IF('2_Upravený'!C72="","",'2_Upravený'!C72) -> RIV - Prof. MUDr. Jiří Gallo, Ph. D. | D72: ='2_Upravený'!D72-'1_Původní'!D72 -> 0 | E72: ='2_Upravený'!E72-'1_Původní'!E72 -> 0 | F72: ='2_Upravený'!F72-'1_Původní'!F72 -> 0 | G72: ='2_Upravený'!G72-'1_Původní'!G72 -> 0 | H72: ='2_Upravený'!H72-'1_Původní'!H72 -> 0 | I72: ='2_Upravený'!I72-'1_Původní'!I72 -> 0 | J72: ='2_Upravený'!J72-'1_Původní'!J72 -> -9756.747 | K72: ='2_Upravený'!K72-'1_Původní'!K72 -> -21560.77 | L72: ='2_Upravený'!L72-'1_Původní'!L72 -> 0 | M72: ='2_Upravený'!M72-'1_Původní'!M72 -> 0 | N72: ='2_Upravený'!N72-'1_Původní'!N72 -> -4799.0504 | O72: ='2_Upravený'!O72-'1_Původní'!O72 -> 0 | P72: -36116.5674
B73: =IF('2_Upravený'!B73="","",'2_Upravený'!B73) -> 8768 | C73: =IF('2_Upravený'!C73="","",'2_Upravený'!C73) -> RIV - Doc. MUDr. Karel Krejčí, Ph. D. | D73: ='2_Upravený'!D73-'1_Původní'!D73 -> 0 | E73: ='2_Upravený'!E73-'1_Původní'!E73 -> 0 | F73: ='2_Upravený'!F73-'1_Původní'!F73 -> 0 | G73: ='2_Upravený'!G73-'1_Původní'!G73 -> 0 | H73: ='2_Upravený'!H73-'1_Původní'!H73 -> 0 | I73: ='2_Upravený'!I73-'1_Původní'!I73 -> 0 | J73: ='2_Upravený'!J73-'1_Původní'!J73 -> 0 | K73: ='2_Upravený'!K73-'1_Původní'!K73 -> 0 | L73: ='2_Upravený'!L73-'1_Původní'!L73 -> 0 | M73: ='2_Upravený'!M73-'1_Původní'!M73 -> 0 | N73: ='2_Upravený'!N73-'1_Původní'!N73 -> -12070.5041 | O73: ='2_Upravený'!O73-'1_Původní'!O73 -> 0 | P73: -12070.5041
B74: =IF('2_Upravený'!B74="","",'2_Upravený'!B74) -> 8773 | C74: =IF('2_Upravený'!C74="","",'2_Upravený'!C74) -> RIV - MUDr. Jan Hálek, Ph.D. | D74: ='2_Upravený'!D74-'1_Původní'!D74 -> 0 | E74: ='2_Upravený'!E74-'1_Původní'!E74 -> 0 | F74: ='2_Upravený'!F74-'1_Původní'!F74 -> 0 | G74: ='2_Upravený'!G74-'1_Původní'!G74 -> 0 | H74: ='2_Upravený'!H74-'1_Původní'!H74 -> 0 | I74: ='2_Upravený'!I74-'1_Původní'!I74 -> -24788.4833 | J74: ='2_Upravený'!J74-'1_Původní'!J74 -> 0 | K74: ='2_Upravený'!K74-'1_Původní'!K74 -> 0 | L74: ='2_Upravený'!L74-'1_Původní'!L74 -> 0 | M74: ='2_Upravený'!M74-'1_Původní'!M74 -> 0 | N74: ='2_Upravený'!N74-'1_Původní'!N74 -> 0 | O74: ='2_Upravený'!O74-'1_Původní'!O74 -> 0 | P74: -24788.4833
B75: =IF('2_Upravený'!B75="","",'2_Upravený'!B75) -> 8780 | C75: =IF('2_Upravený'!C75="","",'2_Upravený'!C75) -> RIV - MUDr. Eva Karásková | D75: ='2_Upravený'!D75-'1_Původní'!D75 -> 0 | E75: ='2_Upravený'!E75-'1_Původní'!E75 -> -3878.9019 | F75: ='2_Upravený'!F75-'1_Původní'!F75 -> 0 | G75: ='2_Upravený'!G75-'1_Původní'!G75 -> 0 | H75: ='2_Upravený'!H75-'1_Původní'!H75 -> 0 | I75: ='2_Upravený'!I75-'1_Původní'!I75 -> 0 | J75: ='2_Upravený'!J75-'1_Původní'!J75 -> 0 | K75: ='2_Upravený'!K75-'1_Původní'!K75 -> -330.1826 | L75: ='2_Upravený'!L75-'1_Původní'!L75 -> -2160.5642 | M75: ='2_Upravený'!M75-'1_Původní'!M75 -> 0 | N75: ='2_Upravený'!N75-'1_Původní'!N75 -> -1933.5017 | O75: ='2_Upravený'!O75-'1_Původní'!O75 -> 0 | P75: -8303.1504
B76: =IF('2_Upravený'!B76="","",'2_Upravený'!B76) -> 8781 | C76: =IF('2_Upravený'!C76="","",'2_Upravený'!C76) -> RIV - Doc. MUDr. Jiří Minařík, Ph. D. | D76: ='2_Upravený'!D76-'1_Původní'!D76 -> 0 | E76: ='2_Upravený'!E76-'1_Původní'!E76 -> 0 | F76: ='2_Upravený'!F76-'1_Původní'!F76 -> -24788.4833 | G76: ='2_Upravený'!G76-'1_Původní'!G76 -> -378.2723 | H76: ='2_Upravený'!H76-'1_Původní'!H76 -> 0 | I76: ='2_Upravený'!I76-'1_Původní'!I76 -> 0 | J76: ='2_Upravený'!J76-'1_Původní'!J76 -> 0 | K76: ='2_Upravený'!K76-'1_Původní'!K76 -> -719.8576 | L76: ='2_Upravený'!L76-'1_Původní'!L76 -> -1900.1661 | M76: ='2_Upravený'!M76-'1_Původní'!M76 -> 0 | N76: ='2_Upravený'!N76-'1_Původní'!N76 -> -899.8219 | O76: ='2_Upravený'!O76-'1_Původní'!O76 -> 0 | P76: -28686.6012
B77: =IF('2_Upravený'!B77="","",'2_Upravený'!B77) -> 8782 | C77: =IF('2_Upravený'!C77="","",'2_Upravený'!C77) -> RIV - RNDr. Pavlína Čapková, Ph. D. | D77: ='2_Upravený'!D77-'1_Původní'!D77 -> 0 | E77: ='2_Upravený'!E77-'1_Původní'!E77 -> 0 | F77: ='2_Upravený'!F77-'1_Původní'!F77 -> -14037.2223 | G77: ='2_Upravený'!G77-'1_Původní'!G77 -> 0 | H77: ='2_Upravený'!H77-'1_Původní'!H77 -> 0 | I77: ='2_Upravený'!I77-'1_Původní'!I77 -> 0 | J77: ='2_Upravený'!J77-'1_Původní'!J77 -> -378.2723 | K77: ='2_Upravený'!K77-'1_Původní'!K77 -> 0 | L77: ='2_Upravený'!L77-'1_Původní'!L77 -> 0 | M77: ='2_Upravený'!M77-'1_Původní'!M77 -> -15479.798 | N77: ='2_Upravený'!N77-'1_Původní'!N77 -> 0 | O77: ='2_Upravený'!O77-'1_Původní'!O77 -> 0 | P77: -29895.2926
B78: =IF('2_Upravený'!B78="","",'2_Upravený'!B78) -> 8783 | C78: =IF('2_Upravený'!C78="","",'2_Upravený'!C78) -> RIV - MUDr. Eva Klásková, Ph. D. | D78: ='2_Upravený'!D78-'1_Původní'!D78 -> 0 | E78: ='2_Upravený'!E78-'1_Původní'!E78 -> 0 | F78: ='2_Upravený'!F78-'1_Původní'!F78 -> 0 | G78: ='2_Upravený'!G78-'1_Původní'!G78 -> 0 | H78: ='2_Upravený'!H78-'1_Původní'!H78 -> -358.9372 | I78: ='2_Upravený'!I78-'1_Původní'!I78 -> 0 | J78: ='2_Upravený'!J78-'1_Původní'!J78 -> 0 | K78: ='2_Upravený'!K78-'1_Původní'!K78 -> 0 | L78: ='2_Upravený'!L78-'1_Původní'!L78 -> -4957.6967 | M78: ='2_Upravený'!M78-'1_Původní'!M78 -> -4773.7661 | N78: ='2_Upravený'!N78-'1_Původní'!N78 -> 0 | O78: ='2_Upravený'!O78-'1_Původní'!O78 -> 0 | P78: -10090.4
B79: =IF('2_Upravený'!B79="","",'2_Upravený'!B79) -> 8785 | C79: =IF('2_Upravený'!C79="","",'2_Upravený'!C79) -> RIV - Doc. MUDr. Martin Hutyra, Ph. D. | D79: ='2_Upravený'!D79-'1_Původní'!D79 -> 0 | E79: ='2_Upravený'!E79-'1_Původní'!E79 -> 0 | F79: ='2_Upravený'!F79-'1_Původní'!F79 -> 0 | G79: ='2_Upravený'!G79-'1_Původní'!G79 -> 0 | H79: ='2_Upravený'!H79-'1_Původní'!H79 -> 0 | I79: ='2_Upravený'!I79-'1_Původní'!I79 -> 0 | J79: ='2_Upravený'!J79-'1_Původní'!J79 -> 0 | K79: ='2_Upravený'!K79-'1_Původní'!K79 -> 0 | L79: ='2_Upravený'!L79-'1_Původní'!L79 -> -7436.545 | M79: ='2_Upravený'!M79-'1_Původní'!M79 -> 0 | N79: ='2_Upravený'!N79-'1_Původní'!N79 -> 0 | O79: ='2_Upravený'!O79-'1_Původní'!O79 -> 0 | P79: -7436.545
B80: =IF('2_Upravený'!B80="","",'2_Upravený'!B80) -> 8786 | C80: =IF('2_Upravený'!C80="","",'2_Upravený'!C80) -> RIV - MUDr. Pavel Hok | D80: ='2_Upravený'!D80-'1_Původní'!D80 -> 0 | E80: ='2_Upravený'!E80-'1_Původní'!E80 -> 0 | F80: ='2_Upravený'!F80-'1_Původní'!F80 -> 0 | G80: ='2_Upravený'!G80-'1_Původní'!G80 -> 0 | H80: ='2_Upravený'!H80-'1_Původní'!H80 -> 0 | I80: ='2_Upravený'!I80-'1_Původní'!I80 -> 0 | J80: ='2_Upravený'!J80-'1_Původní'!J80 -> -39700.3227 | K80: ='2_Upravený'!K80-'1_Původní'!K80 -> 0 | L80: ='2_Upravený'!L80-'1_Původní'!L80 -> 0 | M80: ='2_Upravený'!M80-'1_Původní'!M80 -> 0 | N80: ='2_Upravený'!N80-'1_Původní'!N80 -> 0 | O80: ='2_Upravený'!O80-'1_Původní'!O80 -> 0 | P80: -39700.3227
B81: =IF('2_Upravený'!B81="","",'2_Upravený'!B81) -> 8787 | C81: =IF('2_Upravený'!C81="","",'2_Upravený'!C81) -> RIV - Dr. Gvansta Kharaishvili, Ph. D. | D81: ='2_Upravený'!D81-'1_Původní'!D81 -> 0 | E81: ='2_Upravený'!E81-'1_Původní'!E81 -> 0 | F81: ='2_Upravený'!F81-'1_Původní'!F81 -> 0 | G81: ='2_Upravený'!G81-'1_Původní'!G81 -> -24788.4833 | H81: ='2_Upravený'!H81-'1_Původní'!H81 -> 0 | I81: ='2_Upravený'!I81-'1_Původní'!I81 -> 0 | J81: ='2_Upravený'!J81-'1_Původní'!J81 -> 0 | K81: ='2_Upravený'!K81-'1_Původní'!K81 -> -576.0844 | L81: ='2_Upravený'!L81-'1_Původní'!L81 -> 0 | M81: ='2_Upravený'!M81-'1_Původní'!M81 -> 0 | N81: ='2_Upravený'!N81-'1_Původní'!N81 -> 0 | O81: ='2_Upravený'!O81-'1_Původní'!O81 -> 0 | P81: -25364.5677
B82: =IF('2_Upravený'!B82="","",'2_Upravený'!B82) -> 8791 | C82: =IF('2_Upravený'!C82="","",'2_Upravený'!C82) -> RIV - Doc. Mgr. Luděk Slavík, Ph. D. - MEX | D82: ='2_Upravený'!D82-'1_Původní'!D82 -> 0 | E82: ='2_Upravený'!E82-'1_Původní'!E82 -> 0 | F82: ='2_Upravený'!F82-'1_Původní'!F82 -> -1007.8997 | G82: ='2_Upravený'!G82-'1_Původní'!G82 -> -1580.5137 | H82: ='2_Upravený'!H82-'1_Původní'!H82 -> 0 | I82: ='2_Upravený'!I82-'1_Původní'!I82 -> -1320.7304 | J82: ='2_Upravený'!J82-'1_Původní'!J82 -> -838.8423 | K82: ='2_Upravený'!K82-'1_Původní'!K82 -> -16773.3206 | L82: ='2_Upravený'!L82-'1_Původní'!L82 -> -245.9018 | M82: ='2_Upravený'!M82-'1_Původní'!M82 -> -4980.9978 | N82: ='2_Upravený'!N82-'1_Původní'!N82 -> 0 | O82: ='2_Upravený'!O82-'1_Původní'!O82 -> 0 | P82: -26748.2063
B83: =IF('2_Upravený'!B83="","",'2_Upravený'!B83) -> 8792 | C83: =IF('2_Upravený'!C83="","",'2_Upravený'!C83) -> RIV - Prof. MUDr. Jiří Gallo, Ph. D. - MEX | D83: ='2_Upravený'!D83-'1_Původní'!D83 -> -4799.0504 | E83: ='2_Upravený'!E83-'1_Původní'!E83 -> 0 | F83: ='2_Upravený'!F83-'1_Původní'!F83 -> 0 | G83: ='2_Upravený'!G83-'1_Původní'!G83 -> 0 | H83: ='2_Upravený'!H83-'1_Původní'!H83 -> 0 | I83: ='2_Upravený'!I83-'1_Původní'!I83 -> -1421.2526 | J83: ='2_Upravený'!J83-'1_Původní'!J83 -> 0 | K83: ='2_Upravený'!K83-'1_Původní'!K83 -> -980.6324 | L83: ='2_Upravený'!L83-'1_Původní'!L83 -> -13508.8112 | M83: ='2_Upravený'!M83-'1_Původní'!M83 -> -432.3111 | N83: ='2_Upravený'!N83-'1_Původní'!N83 -> -6009.8191 | O83: ='2_Upravený'!O83-'1_Původní'!O83 -> 0 | P83: -27151.8768
B84: =IF('2_Upravený'!B84="","",'2_Upravený'!B84) -> 8794 | C84: =IF('2_Upravený'!C84="","",'2_Upravený'!C84) -> RIV: MUDr. Martin Loveček, PhD. - MEX | D84: ='2_Upravený'!D84-'1_Původní'!D84 -> 146750 | E84: ='2_Upravený'!E84-'1_Původní'!E84 -> 146750 | F84: ='2_Upravený'!F84-'1_Původní'!F84 -> 146750 | G84: ='2_Upravený'!G84-'1_Původní'!G84 -> 146750 | H84: ='2_Upravený'!H84-'1_Původní'!H84 -> 146750 | I84: ='2_Upravený'!I84-'1_Původní'!I84 -> 146750 | J84: ='2_Upravený'!J84-'1_Původní'!J84 -> 146018.7397 | K84: ='2_Upravený'!K84-'1_Původní'!K84 -> 146750 | L84: ='2_Upravený'!L84-'1_Původní'!L84 -> 146750 | M84: ='2_Upravený'!M84-'1_Původní'!M84 -> 141792.3033 | N84: ='2_Upravený'!N84-'1_Původní'!N84 -> 146750 | O84: ='2_Upravený'!O84-'1_Původní'!O84 -> 146750 | P84: 1755311.043
B85: =IF('2_Upravený'!B85="","",'2_Upravený'!B85) -> 9001 | C85: =IF('2_Upravený'!C85="","",'2_Upravený'!C85) -> Úsek ředitele | D85: ='2_Upravený'!D85-'1_Původní'!D85 -> -4409.3754 | E85: ='2_Upravený'!E85-'1_Původní'!E85 -> -899.8219 | F85: ='2_Upravený'!F85-'1_Původní'!F85 -> 0 | G85: ='2_Upravený'!G85-'1_Původní'!G85 -> 0 | H85: ='2_Upravený'!H85-'1_Původní'!H85 -> 0 | I85: ='2_Upravený'!I85-'1_Původní'!I85 -> -5418.8517 | J85: ='2_Upravený'!J85-'1_Původní'!J85 -> 0 | K85: ='2_Upravený'!K85-'1_Původní'!K85 -> 0 | L85: ='2_Upravený'!L85-'1_Původní'!L85 -> -1367.7294 | M85: ='2_Upravený'!M85-'1_Původní'!M85 -> 0 | N85: ='2_Upravený'!N85-'1_Původní'!N85 -> -19830.7867 | O85: ='2_Upravený'!O85-'1_Původní'!O85 -> -19743.8287 | P85: -51670.3938
B86: =IF('2_Upravený'!B86="","",'2_Upravený'!B86) -> 9010 | C86: =IF('2_Upravený'!C86="","",'2_Upravený'!C86) -> Organizace plesu FN | D86: ='2_Upravený'!D86-'1_Původní'!D86 -> 0 | E86: ='2_Upravený'!E86-'1_Původní'!E86 -> 0 | F86: ='2_Upravený'!F86-'1_Původní'!F86 -> -338.9577 | G86: ='2_Upravený'!G86-'1_Původní'!G86 -> 0 | H86: ='2_Upravený'!H86-'1_Původní'!H86 -> 0 | I86: ='2_Upravený'!I86-'1_Původní'!I86 -> 0 | J86: ='2_Upravený'!J86-'1_Původní'!J86 -> 0 | K86: ='2_Upravený'!K86-'1_Původní'!K86 -> 0 | L86: ='2_Upravený'!L86-'1_Původní'!L86 -> 0 | M86: ='2_Upravený'!M86-'1_Původní'!M86 -> 0 | N86: ='2_Upravený'!N86-'1_Původní'!N86 -> 0 | O86: ='2_Upravený'!O86-'1_Původní'!O86 -> 0 | P86: -338.9577
B87: =IF('2_Upravený'!B87="","",'2_Upravený'!B87) -> 9028 | C87: =IF('2_Upravený'!C87="","",'2_Upravený'!C87) -> Oddělení vědy a výzkumu | D87: ='2_Upravený'!D87-'1_Původní'!D87 -> 0 | E87: ='2_Upravený'!E87-'1_Původní'!E87 -> 0 | F87: ='2_Upravený'!F87-'1_Původní'!F87 -> 0 | G87: ='2_Upravený'!G87-'1_Původní'!G87 -> -40542.68 | H87: ='2_Upravený'!H87-'1_Původní'!H87 -> 0 | I87: ='2_Upravený'!I87-'1_Původní'!I87 -> 0 | J87: ='2_Upravený'!J87-'1_Původní'!J87 -> -4957.6967 | K87: ='2_Upravený'!K87-'1_Původní'!K87 -> 0 | L87: ='2_Upravený'!L87-'1_Původní'!L87 -> -1153.1602 | M87: ='2_Upravený'!M87-'1_Původní'!M87 -> 0 | N87: ='2_Upravený'!N87-'1_Původní'!N87 -> 46041.6579 | O87: ='2_Upravený'!O87-'1_Původní'!O87 -> 0 | P87: -611.879
B88: =IF('2_Upravený'!B88="","",'2_Upravený'!B88) -> 9041 | C88: =IF('2_Upravený'!C88="","",'2_Upravený'!C88) -> Útvar ekonomiky a zdravotních pojišťoven | D88: ='2_Upravený'!D88-'1_Původní'!D88 -> -9798.0446 | E88: ='2_Upravený'!E88-'1_Původní'!E88 -> 0 | F88: ='2_Upravený'!F88-'1_Původní'!F88 -> -127.4128 | G88: ='2_Upravený'!G88-'1_Původní'!G88 -> 0 | H88: ='2_Upravený'!H88-'1_Původní'!H88 -> 0 | I88: ='2_Upravený'!I88-'1_Původní'!I88 -> 0 | J88: ='2_Upravený'!J88-'1_Původní'!J88 -> 0 | K88: ='2_Upravený'!K88-'1_Původní'!K88 -> 0 | L88: ='2_Upravený'!L88-'1_Původní'!L88 -> 0 | M88: ='2_Upravený'!M88-'1_Původní'!M88 -> 0 | N88: ='2_Upravený'!N88-'1_Původní'!N88 -> 0 | O88: ='2_Upravený'!O88-'1_Původní'!O88 -> 0 | P88: -9925.4574
B89: =IF('2_Upravený'!B89="","",'2_Upravený'!B89) -> 9051 | C89: =IF('2_Upravený'!C89="","",'2_Upravený'!C89) -> Útvar hospodářsko technické správy | D89: ='2_Upravený'!D89-'1_Původní'!D89 -> 516730.1217 | E89: ='2_Upravený'!E89-'1_Původní'!E89 -> 524166.6667 | F89: ='2_Upravený'!F89-'1_Původní'!F89 -> 524166.6667 | G89: ='2_Upravený'!G89-'1_Původní'!G89 -> 522431.4729 | H89: ='2_Upravený'!H89-'1_Původní'!H89 -> 524166.6667 | I89: ='2_Upravený'!I89-'1_Původní'!I89 -> 524166.6667 | J89: ='2_Upravený'!J89-'1_Původní'!J89 -> 524166.6667 | K89: ='2_Upravený'!K89-'1_Původní'!K89 -> 524122.0474 | L89: ='2_Upravený'!L89-'1_Původní'!L89 -> 522927.2425 | M89: ='2_Upravený'!M89-'1_Původní'!M89 -> 524166.6667 | N89: ='2_Upravený'!N89-'1_Původní'!N89 -> 524166.6667 | O89: ='2_Upravený'!O89-'1_Původní'!O89 -> 524166.6667 | P89: 6279544.218
B90: =IF('2_Upravený'!B90="","",'2_Upravený'!B90) -> 9081 | C90: =IF('2_Upravený'!C90="","",'2_Upravený'!C90) -> Úsek informačních technologií | D90: ='2_Upravený'!D90-'1_Původní'!D90 -> 0 | E90: ='2_Upravený'!E90-'1_Původní'!E90 -> 0 | F90: ='2_Upravený'!F90-'1_Původní'!F90 -> 0 | G90: ='2_Upravený'!G90-'1_Původní'!G90 -> 0 | H90: ='2_Upravený'!H90-'1_Původní'!H90 -> 0 | I90: ='2_Upravený'!I90-'1_Původní'!I90 -> -1008.8913 | J90: ='2_Upravený'!J90-'1_Původní'!J90 -> 0 | K90: ='2_Upravený'!K90-'1_Původní'!K90 -> 0 | L90: ='2_Upravený'!L90-'1_Původní'!L90 -> 0 | M90: ='2_Upravený'!M90-'1_Původní'!M90 -> 0 | N90: ='2_Upravený'!N90-'1_Původní'!N90 -> 0 | O90: ='2_Upravený'!O90-'1_Původní'!O90 -> 0 | P90: -1008.8913
B91: =IF('2_Upravený'!B91="","",'2_Upravený'!B91) -> 9084 | C91: =IF('2_Upravený'!C91="","",'2_Upravený'!C91) -> Oddělení centrální spisovny | D91: ='2_Upravený'!D91-'1_Původní'!D91 -> 0 | E91: ='2_Upravený'!E91-'1_Původní'!E91 -> 0 | F91: ='2_Upravený'!F91-'1_Původní'!F91 -> 0 | G91: ='2_Upravený'!G91-'1_Původní'!G91 -> 0 | H91: ='2_Upravený'!H91-'1_Původní'!H91 -> 0 | I91: ='2_Upravený'!I91-'1_Původní'!I91 -> 0 | J91: ='2_Upravený'!J91-'1_Původní'!J91 -> 0 | K91: ='2_Upravený'!K91-'1_Původní'!K91 -> 0 | L91: ='2_Upravený'!L91-'1_Původní'!L91 -> 0 | M91: ='2_Upravený'!M91-'1_Původní'!M91 -> 0 | N91: ='2_Upravený'!N91-'1_Původní'!N91 -> -2099.5845 | O91: ='2_Upravený'!O91-'1_Původní'!O91 -> 0 | P91: -2099.5845
B92: =IF('2_Upravený'!B92="","",'2_Upravený'!B92) -> 9091 | C92: =IF('2_Upravený'!C92="","",'2_Upravený'!C92) -> Obchodní úsek | D92: ='2_Upravený'!D92-'1_Původní'!D92 -> 0 | E92: ='2_Upravený'!E92-'1_Původní'!E92 -> 0 | F92: ='2_Upravený'!F92-'1_Původní'!F92 -> 0 | G92: ='2_Upravený'!G92-'1_Původní'!G92 -> 0 | H92: ='2_Upravený'!H92-'1_Původní'!H92 -> 0 | I92: ='2_Upravený'!I92-'1_Původní'!I92 -> 0 | J92: ='2_Upravený'!J92-'1_Původní'!J92 -> 0 | K92: ='2_Upravený'!K92-'1_Původní'!K92 -> 0 | L92: ='2_Upravený'!L92-'1_Původní'!L92 -> 0 | M92: ='2_Upravený'!M92-'1_Původní'!M92 -> 0 | N92: ='2_Upravený'!N92-'1_Původní'!N92 -> -3422.8929 | O92: ='2_Upravený'!O92-'1_Původní'!O92 -> 0 | P92: -3422.8929
B93: =IF('2_Upravený'!B93="","",'2_Upravený'!B93) -> 9096 | C93: =IF('2_Upravený'!C93="","",'2_Upravený'!C93) -> Odbor marketingu | D93: ='2_Upravený'!D93-'1_Původní'!D93 -> -849.2534 | E93: ='2_Upravený'!E93-'1_Původní'!E93 -> 0 | F93: ='2_Upravený'!F93-'1_Původní'!F93 -> 0 | G93: ='2_Upravený'!G93-'1_Původní'!G93 -> 0 | H93: ='2_Upravený'!H93-'1_Původní'!H93 -> 0 | I93: ='2_Upravený'!I93-'1_Původní'!I93 -> 0 | J93: ='2_Upravený'!J93-'1_Původní'!J93 -> 0 | K93: ='2_Upravený'!K93-'1_Původní'!K93 -> 0 | L93: ='2_Upravený'!L93-'1_Původní'!L93 -> 0 | M93: ='2_Upravený'!M93-'1_Původní'!M93 -> 0 | N93: ='2_Upravený'!N93-'1_Původní'!N93 -> 1.5567 | O93: ='2_Upravený'!O93-'1_Původní'!O93 -> 0 | P93: -847.6967
B94: =IF('2_Upravený'!B94="","",'2_Upravený'!B94) -> 9204 | C94: =IF('2_Upravený'!C94="","",'2_Upravený'!C94) -> Areál FNOL | D94: ='2_Upravený'!D94-'1_Původní'!D94 -> 0 | E94: ='2_Upravený'!E94-'1_Původní'!E94 -> 0 | F94: ='2_Upravený'!F94-'1_Původní'!F94 -> 0 | G94: ='2_Upravený'!G94-'1_Původní'!G94 -> -19796.0828 | H94: ='2_Upravený'!H94-'1_Původní'!H94 -> -806224.2854 | I94: ='2_Upravený'!I94-'1_Původní'!I94 -> -1787597.182 | J94: ='2_Upravený'!J94-'1_Původní'!J94 -> -1021351.584 | K94: ='2_Upravený'!K94-'1_Původní'!K94 -> -590563.7814 | L94: ='2_Upravený'!L94-'1_Původní'!L94 -> -52561.5 | M94: ='2_Upravený'!M94-'1_Původní'!M94 -> -64991.5214 | N94: ='2_Upravený'!N94-'1_Původní'!N94 -> 0 | O94: ='2_Upravený'!O94-'1_Původní'!O94 -> -49642.4082 | P94: -4392728.345
B95: =IF('2_Upravený'!B95="","",'2_Upravený'!B95) -> 9209 | C95: =IF('2_Upravený'!C95="","",'2_Upravený'!C95) -> Areál - ulice Profesora Fuky | D95: ='2_Upravený'!D95-'1_Původní'!D95 -> 0 | E95: ='2_Upravený'!E95-'1_Původní'!E95 -> -1953895.001 | F95: ='2_Upravený'!F95-'1_Původní'!F95 -> -4434.268 | G95: ='2_Upravený'!G95-'1_Původní'!G95 -> -2983991.878 | H95: ='2_Upravený'!H95-'1_Původní'!H95 -> -929397.8773 | I95: ='2_Upravený'!I95-'1_Původní'!I95 -> 0 | J95: ='2_Upravený'!J95-'1_Původní'!J95 -> 12717.4835 | K95: ='2_Upravený'!K95-'1_Původní'!K95 -> 0 | L95: ='2_Upravený'!L95-'1_Původní'!L95 -> 0 | M95: ='2_Upravený'!M95-'1_Původní'!M95 -> 0 | N95: ='2_Upravený'!N95-'1_Původní'!N95 -> 0 | O95: ='2_Upravený'!O95-'1_Původní'!O95 -> 0 | P95: -5859001.54
B96: =IF('2_Upravený'!B96="","",'2_Upravený'!B96) -> 9405 | C96: =IF('2_Upravený'!C96="","",'2_Upravený'!C96) -> Provoz dopravy - sanitní - převoz zdrav. pojišťovny | D96: ='2_Upravený'!D96-'1_Původní'!D96 -> -2026.2106 | E96: ='2_Upravený'!E96-'1_Původní'!E96 -> 0 | F96: ='2_Upravený'!F96-'1_Původní'!F96 -> 0 | G96: ='2_Upravený'!G96-'1_Původní'!G96 -> 0 | H96: ='2_Upravený'!H96-'1_Původní'!H96 -> 0 | I96: ='2_Upravený'!I96-'1_Původní'!I96 -> 0 | J96: ='2_Upravený'!J96-'1_Původní'!J96 -> 0 | K96: ='2_Upravený'!K96-'1_Původní'!K96 -> 0 | L96: ='2_Upravený'!L96-'1_Původní'!L96 -> 0 | M96: ='2_Upravený'!M96-'1_Původní'!M96 -> 0 | N96: ='2_Upravený'!N96-'1_Původní'!N96 -> 0 | O96: ='2_Upravený'!O96-'1_Původní'!O96 -> 0 | P96: -2026.2106
B97: =IF('2_Upravený'!B97="","",'2_Upravený'!B97) -> 9819 | C97: =IF('2_Upravený'!C97="","",'2_Upravený'!C97) -> TranMZČR: Bezpečnost a kvalita zdravotní péče | D97: ='2_Upravený'!D97-'1_Původní'!D97 -> 0 | E97: ='2_Upravený'!E97-'1_Původní'!E97 -> 0 | F97: ='2_Upravený'!F97-'1_Původní'!F97 -> 0 | G97: ='2_Upravený'!G97-'1_Původní'!G97 -> 0 | H97: ='2_Upravený'!H97-'1_Původní'!H97 -> 0 | I97: ='2_Upravený'!I97-'1_Původní'!I97 -> 0 | J97: ='2_Upravený'!J97-'1_Původní'!J97 -> 0 | K97: ='2_Upravený'!K97-'1_Původní'!K97 -> 0 | L97: ='2_Upravený'!L97-'1_Původní'!L97 -> 0 | M97: ='2_Upravený'!M97-'1_Původní'!M97 -> -8656.1384 | N97: ='2_Upravený'!N97-'1_Původní'!N97 -> 0 | O97: ='2_Upravený'!O97-'1_Původní'!O97 -> 0 | P97: -8656.1384
B98: =IF('2_Upravený'!B98="","",'2_Upravený'!B98) -> 8599 | C98: =IF('2_Upravený'!C98="","",'2_Upravený'!C98) -> Granty - pomocné středisko | D98: ='2_Upravený'!D98-'1_Původní'!D98 -> 50000 | E98: ='2_Upravený'!E98-'1_Původní'!E98 -> 50000 | F98: ='2_Upravený'!F98-'1_Původní'!F98 -> 50000 | G98: ='2_Upravený'!G98-'1_Původní'!G98 -> 50000 | H98: ='2_Upravený'!H98-'1_Původní'!H98 -> 50000 | I98: ='2_Upravený'!I98-'1_Původní'!I98 -> 50000 | J98: ='2_Upravený'!J98-'1_Původní'!J98 -> 50000 | K98: ='2_Upravený'!K98-'1_Původní'!K98 -> 50000 | L98: ='2_Upravený'!L98-'1_Původní'!L98 -> 50000 | M98: ='2_Upravený'!M98-'1_Původní'!M98 -> 50000 | N98: ='2_Upravený'!N98-'1_Původní'!N98 -> 50000 | O98: ='2_Upravený'!O98-'1_Původní'!O98 -> 50000 | P98: 600000
B99: =IF('2_Upravený'!B99="","",'2_Upravený'!B99) -> 8988 | C99: =IF('2_Upravený'!C99="","",'2_Upravený'!C99) -> Pomocné středisko | D99: ='2_Upravený'!D99-'1_Původní'!D99 -> 150000 | E99: ='2_Upravený'!E99-'1_Původní'!E99 -> 150000 | F99: ='2_Upravený'!F99-'1_Původní'!F99 -> 150000 | G99: ='2_Upravený'!G99-'1_Původní'!G99 -> 150000 | H99: ='2_Upravený'!H99-'1_Původní'!H99 -> 150000 | I99: ='2_Upravený'!I99-'1_Původní'!I99 -> 150000 | J99: ='2_Upravený'!J99-'1_Původní'!J99 -> 150000 | K99: ='2_Upravený'!K99-'1_Původní'!K99 -> 150000 | L99: ='2_Upravený'!L99-'1_Původní'!L99 -> 150000 | M99: ='2_Upravený'!M99-'1_Původní'!M99 -> 150000 | N99: ='2_Upravený'!N99-'1_Původní'!N99 -> 150000 | O99: ='2_Upravený'!O99-'1_Původní'!O99 -> 150000 | P99: 1800000
B100: =IF('2_Upravený'!B100="","",'2_Upravený'!B100) ->  | C100: =IF('2_Upravený'!C100="","",'2_Upravený'!C100) ->  | D100: ='2_Upravený'!D100-'1_Původní'!D100 -> 0 | E100: ='2_Upravený'!E100-'1_Původní'!E100 -> 0 | F100: ='2_Upravený'!F100-'1_Původní'!F100 -> 0 | G100: ='2_Upravený'!G100-'1_Původní'!G100 -> 0 | H100: ='2_Upravený'!H100-'1_Původní'!H100 -> 0 | I100: ='2_Upravený'!I100-'1_Původní'!I100 -> 0 | J100: ='2_Upravený'!J100-'1_Původní'!J100 -> 0 | K100: ='2_Upravený'!K100-'1_Původní'!K100 -> 0 | L100: ='2_Upravený'!L100-'1_Původní'!L100 -> 0 | M100: ='2_Upravený'!M100-'1_Původní'!M100 -> 0 | N100: ='2_Upravený'!N100-'1_Původní'!N100 -> 0 | O100: ='2_Upravený'!O100-'1_Původní'!O100 -> 0 | P100: 0

Sheet CisNS (hidden)
A1: pracv | B1: pracvt
A2: 0101 | B2: Vedení klinického pracoviště
A3: 0102
A4: 0103
A5: 0104 | B5: OP - Interaktivní kardiologie-moderní výukové metody
A6: 0107 | B6: IOP- Mod.obn.přistr.vyb.komplex.kardiovas.centra
A7: 0111 | B7: Lůžkové oddělení 1
A8: 0112 | B8: Lůžkové oddělení
A9: 0113 | B9: Lůžkové oddělení 4
A10: 0115 | B10: Lůžkové oddělení ECMO
A11: 0116 | B11: Lůžkové oddělení COVID 19
A12: 0117 | B12: 1IK: lůžkové oddělení
A13: 0121 | B13: Ambulance
A14: 0122 | B14: Ambulance - PAH
A15: 0123 | B15: Ambulance
A16: 0124 | B16: Ambulance
A17: 0131 | B17: JIP
A18: 0171 | B18: Odd. invaz. vyš. metod-kardiovertery
A19: 0172 | B19: Katetrizační sál
A20: 0176 | B20: IROP - Návazná péče
A21: 0182 | B21: Rezidenti 2015 - nelékařské obory
A22: 0183 | B22: Rezidenti 2016 - ošetřovatelská a intenzivní péče
A23: 0184 | B23: 1IK: rezidenti 2019 - nelékařské obory
A24: 0185 | B24: Rezidenti 2018 - nelékařské obory
A25: 0187 | B25: 1IK: rezidenti 2013 - ošetřovatelská péče
A26: 0188 | B26: Rezidenti 2017 - nelékařské obory
A27: 0189 | B27: Rezidenti 2014 - nelékařské obory
A28: 0194 | B28: Centrum - I.interna
A29: 0201 | B29: Vedení klinického pracoviště gastroenterologiie
A30: 0204 | B30: IOP - Mod.obn.přístr.vyb.centra komplexní onkologické péče
A31: 0205 | B31: IOP - Mod.obn.přístr.vyb.traumatologického c.
A32: 0206 | B32: IOP - Mod.tech.vyb.v oblasti prevence nozokomiál.infek.
A33: 0213 | B33: Lůžkové oddělení 30C
A34: 0216 | B34: Metabolická jednotka 30M
A35: 0221 | B35: Ambulance
A36: 0226
A37: 0231 | B37: JIP 30D
A38: 0266 | B38: Pracoviště DK COS
A39: 0271 | B39: Endoskopie
A40: 0272 | B40: Dospávací hala
A41: 0276 | B41: IROP - Návazná péče
A42: 0284 | B42: 2IK-GER: rezidenti 2019 - nelékařské obory
A43: 0286 | B43: Rezidenti 2018 - lékaři
A44: 0294 | B44: Centrum - II.interna
A45: 0301 | B45: Vedení klinického pracoviště
A46: 0306 | B46: IOP - Mod.tech.vyb.v oblasti prevence nozokomiál.infek.
A47: 0311 | B47: Lůžkové oddělení 39A + 39R
A48: 0312 | B48: Lůžkové oddělení 39B + 39C
A49: 0313 | B49: 3IK: COVID - ORT
A50: 0321 | B50: Ambulance
A51: 0322 | B51: Ambulance - podiatrie
A52: 0331 | B52: JIP 39D
A53: 0352 | B53: Hemodialyzační středisko
A54: 0353 | B54: CAPD
A55: 0376 | B55: IROP - Návazná péče
A56: 0384 | B56: Rezidenti 2010 projekt č. 1 (lékaři)
A57: 0386 | B57: 3IK: Rezidenti 2019 - lékaři
A58: 0387 | B58: 3IK: Rezidenti 2020 - lékaři
A59: 0394 | B59: Centrum - III. interna
A60: 0401 | B60: Vedení klinického pracoviště
A61: 0404 | B61: IOP - Mod.obn.přístr.vyb.centra komplexní onkologické péče
A62: 0406 | B62: IOP - Mod.tech.vyb.v oblasti prevence nozokomiál.infek.
A63: 0411 | B63: Lůžkové oddělení 8
A64: 0412 | B64: Lůžkové oddělení 9 + 9P
A65: 0413 | B65: Lůžkové oddělení 3
A66: 0414 | B66: Lůžkové oddělení 4
A67: 0421 | B67: Ambulance
A68: 0422 | B68: Ambulance
A69: 0432 | B69: JIP 6
A70: 0464 | B70: Pracoviště COS
A71: 0466 | B71: Pracoviště DK COS
A72: 0471 | B72: Odd. invaz. vyš. metotody-endoskopie
A73: 0476 | B73: IROP - Návazná péče
A74: 0483 | B74: Rezidenti 2016 - ošetřovatelská a intenzivní péče
A75: 0484 | B75: 1CHIR: rezidenti 2019 - nelékařské obory
A76: 0487 | B76: 1CHIR: rezidenti 2013 - ošetřovatelská péče
A77: 0489 | B77: Rezidenti 2014 - nelékařské obory
A78: 0499 | B78: Rezidenti
A79: 0501 | B79: Vedení klinického pracoviště
A80: 0507 | B80: IOP- Mod.obn.přistr.vyb.komplex.kardiovas.centra
A81: 0511 | B81: Lůžkové oddělení 37
A82: 0521 | B82: Ambulance
A83: 0532 | B83: JIP 37A
A84: 0564 | B84: Pracoviště COS
A85: 0566 | B85: Pracoviště DK COS
A86: 0601 | B86: Vedení klinického pracoviště
A87: 0604 | B87: IOP - Mod.obn.přístr.vyb.centra komplexní onkologické péče
A88: 0605 | B88: IOP - Mod.obn.přístr.vyb.traumatologického c.
A89: 0606 | B89: IOP - Mod.tech.vyb.v oblasti prevence nozokomiál.infek.
A90: 0609 | B90: IOP - Mod.obn.přístr.vyb.cerebrovaskulárního centra FNOL
A91: 0611 | B91: Lůžkové oddělení 34
A92: 0612 | B92: Lůžkové oddělení 36A
A93: 0621 | B93: Ambulance
A94: 0631 | B94: JIP
A95: 0662 | B95: Operační sál - lokální
A96: 0666 | B96: Pracoviště DK COS
A97: 0676 | B97: IROP - Návazná péče
A98: 0682 | B98: Rezidenti 2015 - nelékařské obory
A99: 0683 | B99: Rezidenti 2016 - ošetřovatelská a intenzivní péče
A100: 0684 | B100: NCHIR: rezidenti 2019 - nelékařské obory
A101: 0685 | B101: Rezidenti 2018
A102: 0687 | B102: NCHIR: rezidenti 2013 - ošetřovatelská péče
A103: 0688 | B103: Rezidenti 2017 - nelékařské obory
A104: 0689 | B104: Rezidenti 2014 - nelékařské obory
A105: 0701 | B105: Vedení klinického pracoviště
A106: 0705 | B106: IOP - Mod.obn.přístr.vyb.traumatologického c.
A107: 0706 | B107: IOP - Mod.tech.vyb.v oblasti prevence nozokomiál.infek.
A108: 0709 | B108: IOP - Mod.obn.přístr.vyb.cerebrovaskulárního centra FNOL
A109: 0715 | B109: Lůžkové oddělení ECMO
A110: 0721 | B110: Ambulance
A111: 0731 | B111: JIP
A112: 0732 | B112: NIOP
A113: 0733 | B113: DIOP
A114: 0762 | B114: Operační sál - lok. prac. anesteziologů
A115: 0764 | B115: Pracoviště COS
A116: 0765 | B116: Dospávací hala KAR
A117: 0766 | B117: Pracoviště DK COS
A118: 0775 | B118: IOP - Mod.obn.přístr.vyb.traumatologického cen. II
A119: 0776 | B119: IROP - Návazná péče
A120: 0782 | B120: Rezidenti 2015 - nelékařské obory
A121: 0783 | B121: Rezidenti 2016 - ošetřovatelská a intenzivní péče
A122: 0785 | B122: Rezidenti 2018
A123: 0787 | B123: KARIM: rezidenti 2013 - ošetřovatelská péče
A124: 0788 | B124: Rezidenti 2017 - nelékařské obory
A125: 0789 | B125: Rezidenti 2014 - nelékařské obory
A126: 0794 | B126: Centrum - KAR
A127: 0801 | B127: Vedení klinického pracoviště
A128: 0802 | B128: ZT pro Perinatologické centrum - IISSP
A129: 0806 | B129: IOP - Mod.tech.vyb.v oblasti prevence nozokomiál.infek.
A130: 0811 | B130: Lůžkové oddělení 19B (šestinedělí)
A131: 0817 | B131: Lůžkové oddělení 17 (operativní gyn.)
A132: 0818 | B132: Intermediální jednotka (17A)
A133: 0821 | B133: Ambulance
A134: 0822 | B134: Ambulance - fetální medicína
A135: 0823 | B135: Centrum asistované reprodukce
A136: 0831 | B136: JIP
A137: 0832 | B137: JIP 19 (porodní sál)
A138: 0841 | B138: Laboratoř cytologická
A139: 0862 | B139: Porodní sál - lokální
A140: 0863 | B140: Operační sál OP 17 (z 08 62)
A141: 0864 | B141: Pracoviště COS
A142: 0873 | B142: IROP - Mod.obn.přístr.vyb.perinatologického centra
A143: 0874 | B143: IROP - Mod.obn.přístr.vyb.onkogynekologického centra
A144: 0884 | B144: PORGYN: rezidenti 2019 - nelékařské obory
A145: 0885 | B145: Rezidenti 2018
A146: 0886 | B146: Rezidenti 2018
A147: 0901 | B147: Vedení klinického pracoviště
A148: 0902 | B148: ZT pro Perinatologické centrum - IISSP
A149: 0903 | B149: Norský fond - projekt 2009
A150: 0904 | B150: Norský fond - projekt 2015
A151: 0911 | B151: Lůžkové oddělení 16C + 16B +16BD
A152: 0912
A153: 0921 | B153: Ambulance
A154: 0931 | B154: JIP 16A +16D
A155: 0932 | B155: JIP
A156: 0973 | B156: IROP - Mod.obn.přístr.vyb.perinatologického centra
A157: 0982 | B157: Rezidenti 2015 - nelékařské obory
A158: 0984 | B158: NOVO: Rezidenti 2019 - nelékařské obory
A159: 0988 | B159: Rezidenti 2017 - nelékařské obory
A160: 0994 | B160: Centrum - novorozenecké
A161: 1001 | B161: Vedení klinického pracoviště
A162: 1004 | B162: IOP - Mod.obn.přístr.vyb.c.k.onkologické p.
A163: 1006 | B163: IOP - Mod.tech.vyb.v oblasti prevence nozokomiál.infek.
A164: 1008 | B164: IOP - Mod.a obnova přístroj.vyb.komplex.rehab.péče
A165: 1011 | B165: Lůžkové oddělení 28B
A166: 1012 | B166: Lůžkové oddělení 28C vč.dospávací haly
A167: 1013 | B167: Lůžkové oddělení 21A
A168: 1014 | B168: Lůžkové oddělení 21B
A169: 1015 | B169: Lůžkové oddělení 28D
A170: 1021 | B170: Ambulance
A171: 1022 | B171: LPS dětská
A172: 1023 | B172: Praktický lékař pro děti a dorost
A173: 1026
A174: 1031 | B174: JIP 21B
A175: 1032 | B175: JIP
A176: 1033 | B176: JIP 21C (pro větší děti)
A177: 1041 | B177: LEM
A178: 1042 | B178: LEM
A179: 1066 | B179: Pracoviště DK COS
A180: 1071 | B180: Endoskopie
A181: 1076 | B181: IROP - Návazná péče
A182: 1083 | B182: Rezidenti 2016 - ošetřovatelská a intenzivní péče
A183: 1084 | B183: DK: rezidenti 2010 projekt č. 1 (lékaři)
A184: 1086 | B184: DK: Rezidenti 2019 - lékaři
A185: 1087 | B185: DK: rezidenti 2020 - lékaři
A186: 1089 | B186: Rezidenti 2014 - nelékařské obory
A187: 1094 | B187: Centrum - DK
A188: 1096 | B188: OPVaVI - NPU I (projekt ÚMTM)
A189: 1097 | B189: OPVaVI - projekt ÚMTM (pouze os.nákl.)
A190: 1101 | B190: Vedení klinického pracoviště
A191: 1102 | B191: ZT pro ORT - IISSP
A192: 1105 | B192: IOP - Mod.obn.přístr.vyb.traumatologického c.
A193: 1106 | B193: IOP - Mod.tech.vyb.v oblasti prevence nozokomiál.infek.
A194: 1108 | B194: IOP - Mod.a obnova přístroj.vyb.komplex.rehab.péče
A195: 1111 | B195: Lůžkové oddělení 29A
A196: 1112 | B196: Lůžkové oddělení 29B
A197: 1113 | B197: Lůžkové oddělení 29C (6 lůžek KÚČOCH)
A198: 1121 | B198: Ambulance
A199: 1131 | B199: JIP 29A
A200: 1151 | B200: Diagnostika poruch pohyb. funkcí - výzkum
... 842 more rows
